Workbook

Sheet C1 Food Packages (hidden)
A1: Total Food Packages: 6 (or 12 if want to keep Nut/Seed butter completely separate)
A2: Food Package IV.a.
A4: C1 Food Packages | F4: C1 Food Packages (Food Package III)
A5: Core Food Item | B5: Allowable Substitution? | C5: Substitutions | D5: Default Substitutions | F5: Core Food Item | G5: Allowable Substitution? | H5: Substitutions | I5: Default Substitutions
A6: Whole Milk | B6: Y | C6: Cheese Yogurt* Tofu | D6: Cheese Yogurt* | F6: Whole Milk | G6: Y | H6: Cheese Yogurt* Tofu | I6: Cheese Yogurt*
A7: Juice | B7: Y | C7: Fruits and Vegetables (CVB) | D7: Fruits and Vegetables (CVB) | F7: Juice | G7: Y | H7: Fruits and Vegetables (CVB) | I7: Fruits and Vegetables (CVB)
A8: Cereal | B8: N | F8: Cereal | G8: Y | H8: Infant Cereal | I8: Infant Cereal
A9: Eggs | B9: Y | C9: Peanut Butter/Legumes or Nut/Seed Butter Tofu | F9: Eggs | G9: Y | H9: Peanut Butter/Legumes or Nut/Seed Butter Tofu
A10: Fruits and Vegetables (CVB) | B10: N | F10: Fruits and Vegetables (CVB) | G10: Y | H10: Infant Fruit/Vegetables | I10: Infant Fruit/Vegetables
A11: Whole Grains | B11: N | F11: Whole Grains | G11: N
A12: Fish | B12: N | F12: Fish | G12: N
A13: Peanut Butter/Legumes | B13: Y | C13: Nut/Seed Butter | F13: Peanut Butter/Legumes | G13: Y | H13: Nut/Seed Butter
F14: Formula | G14: N
A16: Core Food Item | B16: Allowable Substitution? | C16: Substitutions | D16: Default Substitutions | F16: Core Food Item | G16: Allowable Substitution? | H16: Substitutions | I16: Default Substitutions
A17: Plant-based Beverage | B17: Y | C17: Cheese Yogurt* Tofu | D17: Cheese Yogurt* | F17: Plant-based Beverage | G17: Y | H17: Cheese Yogurt* Tofu | I17: Cheese Yogurt*
A18: Juice | B18: Y | C18: Fruits and Vegetables (CVB) | D18: Fruits and Vegetables (CVB) | F18: Juice | G18: Y | H18: Fruits and Vegetables (CVB) | I18: Fruits and Vegetables (CVB)
A19: Cereal | B19: N | F19: Cereal | G19: Y | H19: Infant Cereal | I19: Infant Cereal
A20: Eggs | B20: Y | C20: Peanut Butter/Legumes or Nut/Seed Butter Tofu | F20: Eggs | G20: Y | H20: Peanut Butter/Legumes or Nut/Seed Butter Tofu
A21: Fruits and Vegetables (CVB) | B21: N | F21: Fruits and Vegetables (CVB) | G21: Y | H21: Infant Fruit/Vegetables | I21: Infant Fruit/Vegetables
A22: Whole Grains | B22: N | F22: Whole Grains | G22: N
A23: Fish | B23: N | F23: Fish | G23: N
A24: Peanut Butter/Legumes | B24: Y | C24: Nut/Seed Butter | F24: Peanut Butter/Legumes | G24: Y | H24: Nut/Seed Butter
F25: Formula | G25: N
A27: Core Food Item | B27: Allowable Substitution? | C27: Substitutions | D27: Default Substitutions | F27: Core Food Item | G27: Allowable Substitution? | H27: Substitutions | I27: Default Substitutions
A28: 2% Milk | B28: Y | C28: Cheese Yogurt* Tofu | D28: Cheese Yogurt* | F28: 2% Milk | G28: Y | H28: Cheese Yogurt* Tofu | I28: Cheese Yogurt*
A29: Juice | B29: Y | C29: Fruits and Vegetables (CVB) | D29: Fruits and Vegetables (CVB) | F29: Juice | G29: Y | H29: Fruits and Vegetables (CVB) | I29: Fruits and Vegetables (CVB)
A30: Cereal | B30: N | F30: Cereal | G30: Y | H30: Infant Cereal | I30: Infant Cereal
A31: Eggs | B31: Y | C31: Peanut Butter/Legumes or Nut/Seed Butter Tofu | F31: Eggs | G31: Y | H31: Peanut Butter/Legumes or Nut/Seed Butter Tofu
A32: Fruits and Vegetables (CVB) | B32: N | F32: Fruits and Vegetables (CVB) | G32: Y | H32: Infant Fruit/Vegetables | I32: Infant Fruit/Vegetables
A33: Whole Grains | B33: N | F33: Whole Grains | G33: N
A34: Fish | B34: N | F34: Fish | G34: N
A35: Peanut Butter/Legumes | B35: Y | C35: Nut/Seed Butter | F35: Peanut Butter/Legumes | G35: Y | H35: Nut/Seed Butter
F36: Formula | G36: N
A37: *Yogurt must be whole fat and low fat only.
A39: If need to create separate food packages for nut/seed butter
A40: Core Food Item | B40: Allowable Substitution? | C40: Substitutions | D40: Default Substitutions | F40: Core Food Item | G40: Allowable Substitution? | H40: Substitutions | I40: Default Substitutions
A41: Whole Milk | B41: Y | C41: Cheese Yogurt* Tofu | D41: Cheese Yogurt* | F41: Whole Milk | G41: Y | H41: Cheese Yogurt* Tofu | I41: Cheese Yogurt*
A42: Juice | B42: Y | C42: Fruits and Vegetables (CVB) | D42: Fruits and Vegetables (CVB) | F42: Juice | G42: Y | H42: Fruits and Vegetables (CVB) | I42: Fruits and Vegetables (CVB)
A43: Cereal | B43: N | F43: Cereal | G43: Y | H43: Infant Cereal | I43: Infant Cereal
A44: Eggs | B44: Y | C44: Nut/Seed Butter Tofu | F44: Eggs | G44: Y | H44: Nut/Seed Butter Tofu
A45: Fruits and Vegetables (CVB) | B45: N | F45: Fruits and Vegetables (CVB) | G45: Y | H45: Infant Fruit/Vegetables | I45: Infant Fruit/Vegetables
A46: Whole Grains | B46: N | F46: Whole Grains | G46: N
A47: Fish | B47: N | F47: Fish | G47: N
A48: Nut/Seed Butter | B48: N | F48: Nut/Seed Butter | G48: N
F49: Formula | G49: N
A51: Core Food Item | B51: Allowable Substitution? | C51: Substitutions | D51: Default Substitutions | F51: Core Food Item | G51: Allowable Substitution? | H51: Substitutions | I51: Default Substitutions
A52: Plant-based Beverage | B52: Y | C52: Cheese Yogurt* Tofu | D52: Cheese Yogurt* | F52: Plant-based Beverage | G52: Y | H52: Cheese Yogurt* Tofu | I52: Cheese Yogurt*
A53: Juice | B53: Y | C53: Fruits and Vegetables (CVB) | D53: Fruits and Vegetables (CVB) | F53: Juice | G53: Y | H53: Fruits and Vegetables (CVB) | I53: Fruits and Vegetables (CVB)
A54: Cereal | B54: N | F54: Cereal | G54: Y | H54: Infant Cereal | I54: Infant Cereal
A55: Eggs | B55: Y | C55: Nut/Seed Butter Tofu | F55: Eggs | G55: Y | H55: Nut/Seed Butter Tofu
A56: Fruits and Vegetables (CVB) | B56: N | F56: Fruits and Vegetables (CVB) | G56: Y | H56: Infant Fruit/Vegetables | I56: Infant Fruit/Vegetables
A57: Whole Grains | B57: N | F57: Whole Grains | G57: N
A58: Fish | B58: N | F58: Fish | G58: N
A59: Nut/Seed Butter | B59: N | F59: Nut/Seed Butter | G59: N
F60: Formula | G60: N
A62: Core Food Item | B62: Allowable Substitution? | C62: Substitutions | D62: Default Substitutions | F62: Core Food Item | G62: Allowable Substitution? | H62: Substitutions | I62: Default Substitutions
A63: 2% Milk | B63: Y | C63: Cheese Yogurt* Tofu | D63: Cheese Yogurt* | F63: 2% Milk | G63: Y | H63: Cheese Yogurt* Tofu | I63: Cheese Yogurt*
A64: Juice | B64: Y | C64: Fruits and Vegetables (CVB) | D64: Fruits and Vegetables (CVB) | F64: Juice | G64: Y | H64: Fruits and Vegetables (CVB) | I64: Fruits and Vegetables (CVB)
A65: Cereal | B65: N | F65: Cereal | G65: Y | H65: Infant Cereal | I65: Infant Cereal
A66: Eggs | B66: Y | C66: Nut/Seed Butter Tofu | F66: Eggs | G66: Y | H66: Nut/Seed Butter Tofu
A67: Fruits and Vegetables (CVB) | B67: N | F67: Fruits and Vegetables (CVB) | G67: Y | H67: Infant Fruit/Vegetables | I67: Infant Fruit/Vegetables
A68: Whole Grains | B68: N | F68: Whole Grains | G68: N
A69: Fish | B69: N | F69: Fish | G69: N
A70: Nut/Seed Butter | B70: N | F70: Nut/Seed Butter | G70: N
F71: Formula | G71: N
A72: *Yogurt must be whole fat and low fat only.

Sheet C2-C4 + W Food Packages (hidden)
A1: Total Food Packages per category: 7 (or 14 if want to keep Nut/Seed butter completely separate)
A2: Total: 35 (70)
A3: Food Package IV.b., V.a., V.b., VI, and VII
A5: C2-C4 & Women Food Packages | F5: C2-C4 & Women Food Packages (Food Package III)
A6: Core Food Item | B6: Allowable Substitution? | C6: Substitutions | D6: Default Substitutions | F6: Core Food Item | G6: Allowable Substitution? | H6: Substitutions | I6: Default Substitutions
A7: 1%, 1/2%, or Skim Milk | B7: Y | C7: Cheese Yogurt Tofu | D7: Cheese Yogurt | F7: 1%, 1/2%, or Skim Milk | G7: Y | H7: Cheese Yogurt Tofu | I7: Cheese Yogurt
A8: Juice | B8: Y | C8: Fruits and Vegetables (CVB) | D8: Fruits and Vegetables (CVB) | F8: Juice | G8: Y | H8: Fruits and Vegetables (CVB) | I8: Fruits and Vegetables (CVB)
A9: Cereal | B9: N | F9: Cereal | G9: Y | H9: Infant Cereal | I9: Infant Cereal
A10: Eggs | B10: Y | C10: Peanut Butter/Legumes or Nut/Seed Butter Tofu | F10: Eggs | G10: Y | H10: Peanut Butter/Legumes or Nut/Seed Butter Tofu
A11: Fruits and Vegetables (CVB) | B11: N | F11: Fruits and Vegetables (CVB) | G11: Y | H11: Infant Fruit/Vegetables | I11: Infant Fruit/Vegetables
A12: Whole Grains | B12: N | F12: Whole Grains | G12: N
A13: Fish | B13: N | F13: Fish | G13: N
A14: Peanut Butter/Legumes | B14: Y | C14: Nut/Seed Butter | F14: Peanut Butter/Legumes | G14: Y | H14: Nut/Seed Butter
F15: Formula | G15: N
A17: Core Food Item | B17: Allowable Substitution? | C17: Substitutions | D17: Default Substitutions | F17: Core Food Item | G17: Allowable Substitution? | H17: Substitutions | I17: Default Substitutions
A18: Plant-based Beverage | B18: Y | C18: Cheese Yogurt Tofu | D18: Cheese Yogurt | F18: Plant-based Beverage | G18: Y | H18: Cheese Yogurt Tofu | I18: Cheese Yogurt
A19: Juice | B19: Y | C19: Fruits and Vegetables (CVB) | D19: Fruits and Vegetables (CVB) | F19: Juice | G19: Y | H19: Fruits and Vegetables (CVB) | I19: Fruits and Vegetables (CVB)
A20: Cereal | B20: N | F20: Cereal | G20: Y | H20: Infant Cereal | I20: Infant Cereal
A21: Eggs | B21: Y | C21: Peanut Butter/Legumes or Nut/Seed Butter Tofu | F21: Eggs | G21: Y | H21: Peanut Butter/Legumes or Nut/Seed Butter Tofu
A22: Fruits and Vegetables (CVB) | B22: N | F22: Fruits and Vegetables (CVB) | G22: Y | H22: Infant Fruit/Vegetables | I22: Infant Fruit/Vegetables
A23: Whole Grains | B23: N | F23: Whole Grains | G23: N
A24: Fish | B24: N | F24: Fish | G24: N
A25: Peanut Butter/Legumes | B25: Y | C25: Nut/Seed Butter | F25: Peanut Butter/Legumes | G25: Y | H25: Nut/Seed Butter
F26: Formula | G26: N
A28: Core Food Item | B28: Allowable Substitution? | C28: Substitutions | D28: Default Substitutions | F28: Core Food Item | G28: Allowable Substitution? | H28: Substitutions | I28: Default Substitutions
A29: 2% Milk | B29: Y | C29: Cheese Yogurt Tofu | D29: Cheese Yogurt | F29: 2% Milk | G29: Y | H29: Cheese Yogurt Tofu | I29: Cheese Yogurt
A30: Juice | B30: Y | C30: Fruits and Vegetables (CVB) | D30: Fruits and Vegetables (CVB) | F30: Juice | G30: Y | H30: Fruits and Vegetables (CVB) | I30: Fruits and Vegetables (CVB)
A31: Cereal | B31: N | F31: Cereal | G31: Y | H31: Infant Cereal | I31: Infant Cereal
A32: Eggs | B32: Y | C32: Peanut Butter/Legumes or Nut/Seed Butter Tofu | F32: Eggs | G32: Y | H32: Peanut Butter/Legumes or Nut/Seed Butter Tofu
A33: Fruits and Vegetables (CVB) | B33: N | F33: Fruits and Vegetables (CVB) | G33: Y | H33: Infant Fruit/Vegetables | I33: Infant Fruit/Vegetables
A34: Whole Grains | B34: N | F34: Whole Grains | G34: N
A35: Fish | B35: N | F35: Fish | G35: N
A36: Peanut Butter/Legumes | B36: Y | C36: Nut/Seed Butter | F36: Peanut Butter/Legumes | G36: Y | H36: Nut/Seed Butter
F37: Formula | G37: N
F39: Core Food Item | G39: Allowable Substitution? | H39: Substitutions | I39: Default Substitutions
F40: Whole Milk | G40: Y | H40: Cheese Yogurt* Tofu | I40: Cheese Yogurt*
F41: Juice | G41: Y | H41: Fruits and Vegetables (CVB) | I41: Fruits and Vegetables (CVB)
F42: Cereal | G42: Y | H42: Infant Cereal | I42: Infant Cereal
F43: Eggs | G43: Y | H43: Peanut Butter/Legumes or Nut/Seed Butter Tofu
F44: Fruits and Vegetables (CVB) | G44: Y | H44: Infant Fruit/Vegetables | I44: Infant Fruit/Vegetables
F45: Whole Grains | G45: N
F46: Fish | G46: N
F47: Peanut Butter/Legumes | G47: Y | H47: Nut/Seed Butter
F48: Formula | G48: N
F50: *Yogurt must be whole fat and low fat only.
A52: If need to create separate food packages for nut/seed butter
A53: Core Food Item | B53: Allowable Substitution? | C53: Substitutions | D53: Default Substitutions | F53: Core Food Item | G53: Allowable Substitution? | H53: Substitutions | I53: Default Substitutions
A54: 1%, 1/2%, or Skim Milk | B54: Y | C54: Cheese Yogurt Tofu | D54: Cheese Yogurt | F54: 1%, 1/2%, or Skim Milk | G54: Y | H54: Cheese Yogurt Tofu | I54: Cheese Yogurt
A55: Juice | B55: Y | C55: Fruits and Vegetables (CVB) | D55: Fruits and Vegetables (CVB) | F55: Juice | G55: Y | H55: Fruits and Vegetables (CVB) | I55: Fruits and Vegetables (CVB)
A56: Cereal | B56: N | F56: Cereal | G56: Y | H56: Infant Cereal | I56: Infant Cereal
A57: Eggs | B57: Y | C57: Nut/Seed Butter Tofu | F57: Eggs | G57: Y | H57: Nut/Seed Butter Tofu
A58: Fruits and Vegetables (CVB) | B58: N | F58: Fruits and Vegetables (CVB) | G58: Y | H58: Infant Fruit/Vegetables | I58: Infant Fruit/Vegetables
A59: Whole Grains | B59: N | F59: Whole Grains | G59: N
A60: Fish | B60: N | F60: Fish | G60: N
A61: Nut/Seed Butter | B61: N | F61: Nut/Seed Butter | G61: N
F62: Formula | G62: N
A64: Core Food Item | B64: Allowable Substitution? | C64: Substitutions | D64: Default Substitutions | F64: Core Food Item | G64: Allowable Substitution? | H64: Substitutions | I64: Default Substitutions
A65: Plant-based Beverage | B65: Y | C65: Cheese Yogurt Tofu | D65: Cheese Yogurt | F65: Plant-based Beverage | G65: Y | H65: Cheese Yogurt Tofu | I65: Cheese Yogurt
A66: Juice | B66: Y | C66: Fruits and Vegetables (CVB) | D66: Fruits and Vegetables (CVB) | F66: Juice | G66: Y | H66: Fruits and Vegetables (CVB) | I66: Fruits and Vegetables (CVB)
A67: Cereal | B67: N | F67: Cereal | G67: Y | H67: Infant Cereal | I67: Infant Cereal
A68: Eggs | B68: Y | C68: Nut/Seed Butter Tofu | F68: Eggs | G68: Y | H68: Nut/Seed Butter Tofu
A69: Fruits and Vegetables (CVB) | B69: N | F69: Fruits and Vegetables (CVB) | G69: Y | H69: Infant Fruit/Vegetables | I69: Infant Fruit/Vegetables
A70: Whole Grains | B70: N | F70: Whole Grains | G70: N
A71: Fish | B71: N | F71: Fish | G71: N
A72: Nut/Seed Butter | B72: N | F72: Nut/Seed Butter | G72: N
F73: Formula | G73: N
A75: Core Food Item | B75: Allowable Substitution? | C75: Substitutions | D75: Default Substitutions | F75: Core Food Item | G75: Allowable Substitution? | H75: Substitutions | I75: Default Substitutions
A76: 2% Milk | B76: Y | C76: Cheese Yogurt Tofu | D76: Cheese Yogurt | F76: 2% Milk | G76: Y | H76: Cheese Yogurt Tofu | I76: Cheese Yogurt
A77: Juice | B77: Y | C77: Fruits and Vegetables (CVB) | D77: Fruits and Vegetables (CVB) | F77: Juice | G77: Y | H77: Fruits and Vegetables (CVB) | I77: Fruits and Vegetables (CVB)
A78: Cereal | B78: N | F78: Cereal | G78: Y | H78: Infant Cereal | I78: Infant Cereal
A79: Eggs | B79: Y | C79: Nut/Seed Butter Tofu | F79: Eggs | G79: Y | H79: Nut/Seed Butter Tofu
A80: Fruits and Vegetables (CVB) | B80: N | F80: Fruits and Vegetables (CVB) | G80: Y | H80: Infant Fruit/Vegetables
A81: Whole Grains | B81: N | F81: Whole Grains | G81: N
A82: Fish | B82: N | F82: Fish | G82: N
A83: Nut/Seed Butter | B83: N | F83: Nut/Seed Butter | G83: N
F84: Formula | G84: N
F86: Core Food Item | G86: Allowable Substitution? | H86: Substitutions | I86: Default Substitutions
F87: Whole Milk | G87: Y | H87: Cheese Yogurt* Tofu | I87: Cheese Yogurt*
F88: Juice | G88: Y | H88: Fruits and Vegetables (CVB) | I88: Fruits and Vegetables (CVB)
F89: Cereal | G89: Y | H89: Infant Cereal | I89: Infant Cereal
F90: Eggs | G90: Y | H90: Nut/Seed Butter Tofu
F91: Fruits and Vegetables (CVB) | G91: Y | H91: Infant Fruit/Vegetables | I91: Infant Fruit/Vegetables
F92: Whole Grains | G92: N
F93: Fish | G93: N
F94: Nut/Seed Butter | G94: N
F95: Formula | G95: N
F97: *Yogurt must be whole fat and low fat only.

Sheet Food Item Substition Maximums (hidden)
A1: Client Category | B1: Food Item | C1: Eligible Substitutions | D1: Starting Value | E1: Unit of Measure | F1: Increment Levels | G1: Maximum (MMA) | H1: Notes/Potential System Rules due to Policy
A2: BE | B2: Milk | C2: Cheese (16 oz=3 QT) Yogurt (1 QT=1 QT) Tofu (1 lb=1 QT) | D2: 16 | E2: Quarts | F2: 16, 15, 14, 13, 12….0 | G2: 16 | H2: Exchange rate, dangling qt functionality
A3: BP, PG, NPP | B3: Milk | C3: Cheese (16 oz=3 QT) Yogurt (1 QT=1 QT) Tofu (1 lb=1 QT) | D3: 16 | E3: Quarts | F3: 16, 15, 14, 13, 12….0 | G3: 16
A4: C1 | B4: Milk | C4: Cheese (16 oz=3 QT) Yogurt (1 QT=1 QT) Tofu (1 lb=1 QT) | D4: 12 | E4: Quarts | F4: 12, 11, 10, 9, 8….0 | G4: 12
A5: C2-C4 | B5: Milk | C5: Cheese (16 oz=3 QT) Yogurt (1 QT=1 QT) Tofu (1 lb=1 QT) | D5: 14 | E5: Quarts | F5: 14, 13, 12, 11, 10….0 | G5: 14
A6: BE | B6: Cheese | C6: Milk | D6: 32 | E6: Ounces | F6: 0, 16, 32 | G6: 32
A7: BP, PG, NPP, C1, C2-C4 | B7: Cheese | C7: Milk | D7: 16 | E7: Ounces | F7: 0, 16 | G7: 16
A8: BE, BP, PG, NPP, C1, C2-C4 | B8: Yogurt | C8: Milk | D8: 32 | E8: Ounces | F8: 0, 32, 64 | G8: 64
A9: BE | B9: Tofu | C9: Milk Eggs | D9: 0 | E9: Lbs | F9: 0, 1, 2, 3, 4, 5, 6, 7, 8, 9, 10, 11, 12, 13, 14, 15, 16 | G9: 16
A10: BP, PG, NPP | B10: Tofu | C10: Milk Eggs | D10: 0 | E10: Lbs | F10: 0, 1, 2, 3, 4, 5, 6, 7, 8, 9, 10, 11, 12, 13, 14, 15, 16 | G10: 16
A11: C1 | B11: Tofu | C11: Milk Eggs | D11: 0 | E11: Lbs | F11: 0, 1, 2, 3, 4, 5, 6, 7, 8, 9, 10, 11, 12 | G11: 12
A12: C2-C4 | B12: Tofu | C12: Milk Eggs | D12: 0 | E12: Lbs | F12: 0, 1, 2, 3, 4, 5, 6, 7, 8, 9, 10, 11, 12, 13, 14 | G12: 14
A13: BE | B13: Eggs | C13: Legumes Tofu | D13: 2 | E13: Dozen | F13: 2, 1, 0 | G13: 2
A14: BP, PG, NPP, C1, C2-C4 | B14: Eggs | C14: Legumes Tofu | D14: 1 | E14: Dozen | F14: 1, 0 | G14: 1
A15: BE, BP, PG, NPP, C1, C2-C4 | B15: Breakfast Cereal | C15: Infant Cereal | D15: 36 | E15: Ounces | F15: 36, 0 | G15: 36 | H15: System rule may be needed for infant cereal substitution (i.e. pop up SFFR required, currently we require expiration date entered)
A16: BE, BP, PG, NPP, C1, C2-C4 | B16: Infant Cereal | C16: Breakfast Cereal | D16: 0 | E16: Ounces | F16: 0, 32 | G16: 32
A17: BE, BP, PG, NPP, C1, C2-C4 | B17: Juice | C17: CVB | D17: 64 | E17: Ounces | F17: 64, 0 | G17: 64
A18: BE, BP | B18: CVB | C18: Juice | D18: X | E18: $$$ | F18: X + Y | G18: X + Y
A19: PG, NPP | B19: CVB | C19: Juice | D19: X | E19: $$$ | F19: X + Y | G19: X + Y
A20: C1-C4 | B20: CVB | C20: Juice | D20: X | E20: $$$ | F20: X + Y | G20: X + Y
A21: IBE, IBP, IFF | B21: CVB | C21: Infant F/V | D21: X | E21: $$$ | F21: 0, X, X*2 | G21: X*2 | H21: System rule may be needed to remind that CVB only issued after nutrition assessment (i.e. pop up)
A22: IBE, IBP, IFF | B22: Infant F/V | C22: CVB | D22: 128 | E22: Ounces | F22: 128, 64, 0 | G22: 128
A23: BE, BP, PG, NPP | B23: Infant F/V | C23: CVB | D23: 0 | E23: Ounces | F23: 0, 32, 64, 96, 128, 160 | G23: X * 6.25 ounces | H23: System rule may be needed for infant F/V substitution (i.e. pop up SFFR required, currently we require expiration date entered)
A24: C1, C2-C4 | B24: Infant F/V | C24: CVB | D24: 0 | E24: Ounces | F24: 0, 32, 64, 96, 128 | G24: X * 6.25 ounces | H24: System rule may be needed for infant F/V substitution (i.e. pop up SFFR required, currently we require expiration date entered)
A25: BE | B25: Fish | C25: None | D25: 20 | E25: Ounces | F25: None | G25: 20
A26: PG | B26: Fish | C26: None | D26: 10 | E26: Ounces | F26: None | G26: 10
A27: BP, NPP | B27: Fish | C27: None | D27: 15 | E27: Ounces | F27: None | G27: 15
A28: C1, C2-C4 | B28: Fish | C28: None | D28: 6 | E28: Ounces | F28: None | G28: 6
A29: BE, BP, PG, NPP | B29: Whole grains | C29: None | D29: 48 | E29: Ounces | F29: None | G29: 48
A30: C1, C2-C4 | B30: Whole grains | C30: None | D30: 24 | E30: Ounces | F30: None | G30: 24
A31: IBE | B31: Infant Meat | C31: None | D31: 40 | E31: Ounces | F31: None | G31: 40
A32: All Categories | B32: Formula | C32: None

Sheet Notes (hidden)
A2: This document will go through the various permutations of food packages.
A4: Food Package I: food packages are already created for each infant category (IBE, IBP, and IFF) and for each formula.
A5: Food Package II: food packages are already created for each infant category (IBE, IBP, and IFF) and for each infant formula. **However, would like to be able to use new substitution functionality for infant fruits/vegetables-->CVB and only have one 6-11 month food package for each permutation.
A7: The remaining food packages categories contain the same core food items for children and women categories.

Sheet C1 Food Packages - edits (hidden)
A1: Total Food Packages: 2
A2: Food Package IV.a.
A4: C1 Food Packages | F4: C1 Food Packages (Food Package III)
A5: Core Food Item | B5: Allowable Substitution? | C5: Substitutions | D5: Default Substitutions | F5: Core Food Item | G5: Allowable Substitution? | H5: Substitutions | I5: Default Substitutions
A6: Whole Milk | B6: Y | C6: Cheese Yogurt* Tofu Plant-based beverage** 2% Milk** | D6: Cheese Yogurt* | F6: Whole Milk | G6: Y | H6: Cheese Yogurt* Tofu Plant-based beverage** 2% Milk** | I6: Cheese Yogurt*
A7: Juice | B7: Y | C7: Fruits and Vegetables (CVB) | D7: Fruits and Vegetables (CVB) | F7: Juice | G7: Y | H7: Fruits and Vegetables (CVB) | I7: Fruits and Vegetables (CVB)
A8: Cereal | B8: N | F8: Cereal | G8: Y | H8: Infant Cereal | I8: Infant Cereal
A9: Eggs | B9: Y | C9: Peanut Butter/Legumes or Nut/Seed Butter/Legumes Tofu | F9: Eggs | G9: Y | H9: Peanut Butter/Legumes or Nut/Seed Butter/Legumes Tofu
A10: Fruits and Vegetables (CVB) | B10: N | F10: Fruits and Vegetables (CVB) | G10: Y | H10: Infant Fruit/Vegetables | I10: Infant Fruit/Vegetables
A11: Whole Grains | B11: N | F11: Whole Grains | G11: N
A12: Fish | B12: N | F12: Fish | G12: N
A13: Peanut Butter/Legumes | B13: Y | C13: Nut/Seed Butter/Legumes | F13: Peanut Butter/Legumes | G13: Y | H13: Nut/Seed Butter/Legumes
A14: *Yogurt must be whole fat and low fat only. | F14: **must have formula**
A15: **must replace all milk remaining.
F16: Core Food Item | G16: Allowable Substitution? | H16: Substitutions | I16: Default Substitutions
A17: Core Food Item | B17: Allowable Substitution? | C17: Substitutions | D17: Default Substitutions | F17: Plant-based Beverage | G17: Y | H17: Cheese Yogurt* Tofu | I17: Cheese Yogurt*
A18: Plant-based Beverage | B18: Y | C18: Cheese Yogurt* Tofu | D18: Cheese Yogurt* | F18: Juice | G18: Y | H18: Fruits and Vegetables (CVB) | I18: Fruits and Vegetables (CVB)
A19: Juice | B19: Y | C19: Fruits and Vegetables (CVB) | D19: Fruits and Vegetables (CVB) | F19: Cereal | G19: Y | H19: Infant Cereal | I19: Infant Cereal
A20: Cereal | B20: N | F20: Eggs | G20: Y | H20: Peanut Butter/Legumes or Nut/Seed Butter Tofu
A21: Eggs | B21: Y | C21: Peanut Butter/Legumes or Nut/Seed Butter Tofu | F21: Fruits and Vegetables (CVB) | G21: Y | H21: Infant Fruit/Vegetables | I21: Infant Fruit/Vegetables
A22: Fruits and Vegetables (CVB) | B22: N | F22: Whole Grains | G22: N
A23: Whole Grains | B23: N | F23: Fish | G23: N
A24: Fish | B24: N | F24: Peanut Butter/Legumes | G24: Y | H24: Nut/Seed Butter
A25: Peanut Butter/Legumes | B25: Y | C25: Nut/Seed Butter | F25: Formula | G25: N
F27: Core Food Item | G27: Allowable Substitution? | H27: Substitutions | I27: Default Substitutions
A28: Core Food Item | B28: Allowable Substitution? | C28: Substitutions | D28: Default Substitutions | F28: 2% Milk | G28: Y | H28: Cheese Yogurt* Tofu | I28: Cheese Yogurt*
A29: 2% Milk | B29: Y | C29: Cheese Yogurt* Tofu | D29: Cheese Yogurt* | F29: Juice | G29: Y | H29: Fruits and Vegetables (CVB) | I29: Fruits and Vegetables (CVB)
A30: Juice | B30: Y | C30: Fruits and Vegetables (CVB) | D30: Fruits and Vegetables (CVB) | F30: Cereal | G30: Y | H30: Infant Cereal | I30: Infant Cereal
A31: Cereal | B31: N | F31: Eggs | G31: Y | H31: Peanut Butter/Legumes or Nut/Seed Butter Tofu
A32: Eggs | B32: Y | C32: Peanut Butter/Legumes or Nut/Seed Butter Tofu | F32: Fruits and Vegetables (CVB) | G32: Y | H32: Infant Fruit/Vegetables | I32: Infant Fruit/Vegetables
A33: Fruits and Vegetables (CVB) | B33: N | F33: Whole Grains | G33: N
A34: Whole Grains | B34: N | F34: Fish | G34: N
A35: Fish | B35: N | F35: Peanut Butter/Legumes | G35: Y | H35: Nut/Seed Butter
A36: Peanut Butter/Legumes | B36: Y | C36: Nut/Seed Butter | F36: Formula | G36: N
A38: *Yogurt must be whole fat and low fat only.
A40: If need to create separate food packages for nut/seed butter | F40: Core Food Item | G40: Allowable Substitution? | H40: Substitutions | I40: Default Substitutions
A41: Core Food Item | B41: Allowable Substitution? | C41: Substitutions | D41: Default Substitutions | F41: Whole Milk | G41: Y | H41: Cheese Yogurt* Tofu | I41: Cheese Yogurt*
A42: Whole Milk | B42: Y | C42: Cheese Yogurt* Tofu | D42: Cheese Yogurt* | F42: Juice | G42: Y | H42: Fruits and Vegetables (CVB) | I42: Fruits and Vegetables (CVB)
A43: Juice | B43: Y | C43: Fruits and Vegetables (CVB) | D43: Fruits and Vegetables (CVB) | F43: Cereal | G43: Y | H43: Infant Cereal | I43: Infant Cereal
A44: Cereal | B44: N | F44: Eggs | G44: Y | H44: Nut/Seed Butter Tofu
A45: Eggs | B45: Y | C45: Nut/Seed Butter Tofu | F45: Fruits and Vegetables (CVB) | G45: Y | H45: Infant Fruit/Vegetables | I45: Infant Fruit/Vegetables
A46: Fruits and Vegetables (CVB) | B46: N | F46: Whole Grains | G46: N
A47: Whole Grains | B47: N | F47: Fish | G47: N
A48: Fish | B48: N | F48: Nut/Seed Butter | G48: N
A49: Nut/Seed Butter | B49: N | F49: Formula | G49: N
F51: Core Food Item | G51: Allowable Substitution? | H51: Substitutions | I51: Default Substitutions
A52: Core Food Item | B52: Allowable Substitution? | C52: Substitutions | D52: Default Substitutions | F52: Plant-based Beverage | G52: Y | H52: Cheese Yogurt* Tofu | I52: Cheese Yogurt*
A53: Plant-based Beverage | B53: Y | C53: Cheese Yogurt* Tofu | D53: Cheese Yogurt* | F53: Juice | G53: Y | H53: Fruits and Vegetables (CVB) | I53: Fruits and Vegetables (CVB)
A54: Juice | B54: Y | C54: Fruits and Vegetables (CVB) | D54: Fruits and Vegetables (CVB) | F54: Cereal | G54: Y | H54: Infant Cereal | I54: Infant Cereal
A55: Cereal | B55: N | F55: Eggs | G55: Y | H55: Nut/Seed Butter Tofu
A56: Eggs | B56: Y | C56: Nut/Seed Butter Tofu | F56: Fruits and Vegetables (CVB) | G56: Y | H56: Infant Fruit/Vegetables | I56: Infant Fruit/Vegetables
A57: Fruits and Vegetables (CVB) | B57: N | F57: Whole Grains | G57: N
A58: Whole Grains | B58: N | F58: Fish | G58: N
A59: Fish | B59: N | F59: Nut/Seed Butter | G59: N
A60: Nut/Seed Butter | B60: N | F60: Formula | G60: N
F62: Core Food Item | G62: Allowable Substitution? | H62: Substitutions | I62: Default Substitutions
A63: Core Food Item | B63: Allowable Substitution? | C63: Substitutions | D63: Default Substitutions | F63: 2% Milk | G63: Y | H63: Cheese Yogurt* Tofu | I63: Cheese Yogurt*
A64: 2% Milk | B64: Y | C64: Cheese Yogurt* Tofu | D64: Cheese Yogurt* | F64: Juice | G64: Y | H64: Fruits and Vegetables (CVB) | I64: Fruits and Vegetables (CVB)
A65: Juice | B65: Y | C65: Fruits and Vegetables (CVB) | D65: Fruits and Vegetables (CVB) | F65: Cereal | G65: Y | H65: Infant Cereal | I65: Infant Cereal
A66: Cereal | B66: N | F66: Eggs | G66: Y | H66: Nut/Seed Butter Tofu
A67: Eggs | B67: Y | C67: Nut/Seed Butter Tofu | F67: Fruits and Vegetables (CVB) | G67: Y | H67: Infant Fruit/Vegetables | I67: Infant Fruit/Vegetables
A68: Fruits and Vegetables (CVB) | B68: N | F68: Whole Grains | G68: N
A69: Whole Grains | B69: N | F69: Fish | G69: N
A70: Fish | B70: N | F70: Nut/Seed Butter | G70: N
A71: Nut/Seed Butter | B71: N | F71: Formula | G71: N
A73: *Yogurt must be whole fat and low fat only.

Sheet C2-C4 + W Food Packages-edits (hidden)
A1: Total Food Packages per category: 3
A2: Total: 15
A3: Food Package IV.b., V.a., V.b., VI, and VII
A5: C2-C4 & Women Food Packages | F5: C2-C4 & Women Food Packages (Food Package III)
A6: Core Food Item | B6: Allowable Substitution? | C6: Substitutions | D6: Default Substitutions | F6: Core Food Item | G6: Allowable Substitution? | H6: Substitutions | I6: Default Substitutions
A7: 1%, 1/2%, or Skim Milk | B7: Y | C7: Cheese Yogurt Tofu Plant-based beverage** 2% Milk** | D7: Cheese Yogurt | F7: 1%, 1/2%, or Skim Milk | G7: Y | H7: Cheese Yogurt Tofu Plant-based beverage** 2% Milk** | I7: Cheese Yogurt
A8: Juice | B8: Y | C8: Fruits and Vegetables (CVB) | D8: Fruits and Vegetables (CVB) | F8: Juice | G8: Y | H8: Fruits and Vegetables (CVB) | I8: Fruits and Vegetables (CVB)
A9: Cereal | B9: N | F9: Cereal | G9: Y | H9: Infant Cereal | I9: Infant Cereal
A10: Eggs | B10: Y | C10: Peanut Butter/Legumes or Nut/Seed Butter/Legumes Tofu | F10: Eggs | G10: Y | H10: Peanut Butter/Legumes or Nut/Seed Butter/Legumes Tofu
A11: Fruits and Vegetables (CVB) | B11: N | F11: Fruits and Vegetables (CVB) | G11: Y | H11: Infant Fruit/Vegetables | I11: Infant Fruit/Vegetables
A12: Whole Grains | B12: N | F12: Whole Grains | G12: N
A13: Fish | B13: N | F13: Fish | G13: N
A14: Peanut Butter/Legumes | B14: Y | C14: Nut/Seed Butter/Legumes | F14: Peanut Butter/Legumes | G14: Y | H14: Nut/Seed Butter/Legumes
A15: **must replace all milk remaining. | F15: **must have formula**
A17: Core Food Item | B17: Allowable Substitution? | C17: Substitutions | D17: Default Substitutions | F17: Core Food Item | G17: Allowable Substitution? | H17: Substitutions | I17: Default Substitutions
A18: Plant-based Beverage | B18: Y | C18: Cheese Yogurt Tofu | D18: Cheese Yogurt | F18: Plant-based Beverage | G18: Y | H18: Cheese Yogurt Tofu | I18: Cheese Yogurt
A19: Juice | B19: Y | C19: Fruits and Vegetables (CVB) | D19: Fruits and Vegetables (CVB) | F19: Juice | G19: Y | H19: Fruits and Vegetables (CVB) | I19: Fruits and Vegetables (CVB)
A20: Cereal | B20: N | F20: Cereal | G20: Y | H20: Infant Cereal | I20: Infant Cereal
A21: Eggs | B21: Y | C21: Peanut Butter/Legumes or Nut/Seed Butter Tofu | F21: Eggs | G21: Y | H21: Peanut Butter/Legumes or Nut/Seed Butter Tofu
A22: Fruits and Vegetables (CVB) | B22: N | F22: Fruits and Vegetables (CVB) | G22: Y | H22: Infant Fruit/Vegetables | I22: Infant Fruit/Vegetables
A23: Whole Grains | B23: N | F23: Whole Grains | G23: N
A24: Fish | B24: N | F24: Fish | G24: N
A25: Peanut Butter/Legumes | B25: Y | C25: Nut/Seed Butter | F25: Peanut Butter/Legumes | G25: Y | H25: Nut/Seed Butter
F26: Formula | G26: N
A28: Core Food Item | B28: Allowable Substitution? | C28: Substitutions | D28: Default Substitutions | F28: Core Food Item | G28: Allowable Substitution? | H28: Substitutions | I28: Default Substitutions
A29: 2% Milk | B29: Y | C29: Cheese Yogurt Tofu | D29: Cheese Yogurt | F29: 2% Milk | G29: Y | H29: Cheese Yogurt Tofu | I29: Cheese Yogurt
A30: Juice | B30: Y | C30: Fruits and Vegetables (CVB) | D30: Fruits and Vegetables (CVB) | F30: Juice | G30: Y | H30: Fruits and Vegetables (CVB) | I30: Fruits and Vegetables (CVB)
A31: Cereal | B31: N | F31: Cereal | G31: Y | H31: Infant Cereal | I31: Infant Cereal
A32: Eggs | B32: Y | C32: Peanut Butter/Legumes or Nut/Seed Butter Tofu | F32: Eggs | G32: Y | H32: Peanut Butter/Legumes or Nut/Seed Butter Tofu
A33: Fruits and Vegetables (CVB) | B33: N | F33: Fruits and Vegetables (CVB) | G33: Y | H33: Infant Fruit/Vegetables | I33: Infant Fruit/Vegetables
A34: Whole Grains | B34: N | F34: Whole Grains | G34: N
A35: Fish | B35: N | F35: Fish | G35: N
A36: Peanut Butter/Legumes | B36: Y | C36: Nut/Seed Butter | F36: Peanut Butter/Legumes | G36: Y | H36: Nut/Seed Butter
F37: Formula | G37: N
F39: Core Food Item | G39: Allowable Substitution? | H39: Substitutions | I39: Default Substitutions
F40: Whole Milk | G40: Y | H40: Cheese Yogurt* Tofu | I40: Cheese Yogurt*
F41: Juice | G41: Y | H41: Fruits and Vegetables (CVB) | I41: Fruits and Vegetables (CVB)
F42: Cereal | G42: Y | H42: Infant Cereal | I42: Infant Cereal
F43: Eggs | G43: Y | H43: Peanut Butter/Legumes or Nut/Seed Butter Tofu
F44: Fruits and Vegetables (CVB) | G44: Y | H44: Infant Fruit/Vegetables | I44: Infant Fruit/Vegetables
F45: Whole Grains | G45: N
F46: Fish | G46: N
F47: Peanut Butter/Legumes | G47: Y | H47: Nut/Seed Butter/Legumes
F48: **must have formula**
F49: *Yogurt must be whole fat and low fat only.
F50: **must replace all milk remaining.
A52: If need to create separate food packages for nut/seed butter
A53: Core Food Item | B53: Allowable Substitution? | C53: Substitutions | D53: Default Substitutions | F53: Core Food Item | G53: Allowable Substitution? | H53: Substitutions | I53: Default Substitutions
A54: 1%, 1/2%, or Skim Milk | B54: Y | C54: Cheese Yogurt Tofu | D54: Cheese Yogurt | F54: 1%, 1/2%, or Skim Milk | G54: Y | H54: Cheese Yogurt Tofu | I54: Cheese Yogurt
A55: Juice | B55: Y | C55: Fruits and Vegetables (CVB) | D55: Fruits and Vegetables (CVB) | F55: Juice | G55: Y | H55: Fruits and Vegetables (CVB) | I55: Fruits and Vegetables (CVB)
A56: Cereal | B56: N | F56: Cereal | G56: Y | H56: Infant Cereal | I56: Infant Cereal
A57: Eggs | B57: Y | C57: Nut/Seed Butter Tofu | F57: Eggs | G57: Y | H57: Nut/Seed Butter Tofu
A58: Fruits and Vegetables (CVB) | B58: N | F58: Fruits and Vegetables (CVB) | G58: Y | H58: Infant Fruit/Vegetables | I58: Infant Fruit/Vegetables
A59: Whole Grains | B59: N | F59: Whole Grains | G59: N
A60: Fish | B60: N | F60: Fish | G60: N
A61: Nut/Seed Butter | B61: N | F61: Nut/Seed Butter | G61: N
F62: Formula | G62: N
A64: Core Food Item | B64: Allowable Substitution? | C64: Substitutions | D64: Default Substitutions | F64: Core Food Item | G64: Allowable Substitution? | H64: Substitutions | I64: Default Substitutions
A65: Plant-based Beverage | B65: Y | C65: Cheese Yogurt Tofu | D65: Cheese Yogurt | F65: Plant-based Beverage | G65: Y | H65: Cheese Yogurt Tofu | I65: Cheese Yogurt
A66: Juice | B66: Y | C66: Fruits and Vegetables (CVB) | D66: Fruits and Vegetables (CVB) | F66: Juice | G66: Y | H66: Fruits and Vegetables (CVB) | I66: Fruits and Vegetables (CVB)
A67: Cereal | B67: N | F67: Cereal | G67: Y | H67: Infant Cereal | I67: Infant Cereal
A68: Eggs | B68: Y | C68: Nut/Seed Butter Tofu | F68: Eggs | G68: Y | H68: Nut/Seed Butter Tofu
A69: Fruits and Vegetables (CVB) | B69: N | F69: Fruits and Vegetables (CVB) | G69: Y | H69: Infant Fruit/Vegetables | I69: Infant Fruit/Vegetables
A70: Whole Grains | B70: N | F70: Whole Grains | G70: N
A71: Fish | B71: N | F71: Fish | G71: N
A72: Nut/Seed Butter | B72: N | F72: Nut/Seed Butter | G72: N
F73: Formula | G73: N
A75: Core Food Item | B75: Allowable Substitution? | C75: Substitutions | D75: Default Substitutions | F75: Core Food Item | G75: Allowable Substitution? | H75: Substitutions | I75: Default Substitutions
A76: 2% Milk | B76: Y | C76: Cheese Yogurt Tofu | D76: Cheese Yogurt | F76: 2% Milk | G76: Y | H76: Cheese Yogurt Tofu | I76: Cheese Yogurt
A77: Juice | B77: Y | C77: Fruits and Vegetables (CVB) | D77: Fruits and Vegetables (CVB) | F77: Juice | G77: Y | H77: Fruits and Vegetables (CVB) | I77: Fruits and Vegetables (CVB)
A78: Cereal | B78: N | F78: Cereal | G78: Y | H78: Infant Cereal | I78: Infant Cereal
A79: Eggs | B79: Y | C79: Nut/Seed Butter Tofu | F79: Eggs | G79: Y | H79: Nut/Seed Butter Tofu
A80: Fruits and Vegetables (CVB) | B80: N | F80: Fruits and Vegetables (CVB) | G80: Y | H80: Infant Fruit/Vegetables
A81: Whole Grains | B81: N | F81: Whole Grains | G81: N
A82: Fish | B82: N | F82: Fish | G82: N
A83: Nut/Seed Butter | B83: N | F83: Nut/Seed Butter | G83: N
F84: Formula | G84: N
F86: Core Food Item | G86: Allowable Substitution? | H86: Substitutions | I86: Default Substitutions
F87: Whole Milk | G87: Y | H87: Cheese Yogurt* Tofu | I87: Cheese Yogurt*
F88: Juice | G88: Y | H88: Fruits and Vegetables (CVB) | I88: Fruits and Vegetables (CVB)
F89: Cereal | G89: Y | H89: Infant Cereal | I89: Infant Cereal
F90: Eggs | G90: Y | H90: Nut/Seed Butter Tofu
F91: Fruits and Vegetables (CVB) | G91: Y | H91: Infant Fruit/Vegetables | I91: Infant Fruit/Vegetables
F92: Whole Grains | G92: N
F93: Fish | G93: N
F94: Nut/Seed Butter | G94: N
F95: Formula | G95: N
F97: *Yogurt must be whole fat and low fat only.

Sheet Infant 6-11 mo Food Packages (hidden)
A1: Total Food Packages:
A2: Food Package II/III
A4: Infant 6-11 month Food Packages
A5: Core Food Item | B5: Allowable Substitution? | C5: Substitutions | D5: Default Substitutions
A6: Formula (IBP/IFF only)* | B6: N
A7: Infant Cereal | B7: N
A8: Infant Fruits/Vegetables | B8: Y | C8: Fruits and Vegetables (CVB)
A9: Infant Meat (IBE only) | B9: N
A11: * All formulas will have individual food packages created per client category
A13: Note: All infant food packages (IBE, IBP, and IFF) are already created but will need to be modified with the new functionality

Sheet Legend
A1: Food Package Category | B1: Eligible Client Categories
A2: Food Package II | B2: IBE, IBP, and IFF (6-11 months of age)
A3: Food Package IV-A | B3: C1
A4: Food Package IV-B | B4: C2-C4
A5: Food Package V-A | B5: PG
A6: Food Package V-B | B6: · BP
B7: · PG expecting two or more fetuses.
A8: Food Package VI | B8: · NPP
B9: · BP receiving more than the maximum amount of formula for partially breastfed infants (up to 6 months).
A10: Food Package VII | B10: · BE
B11: · BP with multiple IBPs under 1 year old from the same pregnancy.
B12: · PG and breastfeeding an infant under 1 year old.
A14: Note: Each sheet shows functionality of both the Display and Customize pop-ups in one. The display pop-up will display any and all customizations/substitutions made to the food package. The customization screen will only show substitutitions and their quantities in the bottom grid.

Sheet Food Package II
B1: Food Package II (IBE) | H1: Food Package II (IBP/IFF)
B3: Quantity | C3: Package Size | D3: Description | H3: Quantity | I3: Package Size | J3: Description
B4: 16 | C4: OZ | D4: Infant Cereal | H4: 8 | I4: OZ | J4: Infant Cereal
B5: 40 | C5: OZ | D5: Infant Meat | H5: xx | I5: units | J5: Formula
B6: =128-F13 -> 128 | C6: OZ | D6: Infant Fruits/Vegetables | H6: =128-L13 -> 128 | I6: OZ | J6: Infant Fruits/Vegetables
B7: =B13 -> 0 | C7: $$$ | D7: FRUITS AND VEGETABLES | H7: =H13 -> 0 | I7: $$$ | J7: FRUITS AND VEGETABLES
B8: Conditional formatting to "hide" substitutions that equal 0. | H8: Conditional formatting to "hide" substitutions that equal 0.
B10: Substitutions | H10: Substitutions
B11: Substitution Amt | C11: Package Size | D11: Description | H11: Substitution Amt | I11: Package Size | J11: Description
B12: Infant Fruits/Vegetables Substitutions | H12: Infant Fruits/Vegetables Substitutions
B13: 0 | C13: $$$ | D13: Fruit and vegetable CVB | F13: =ROUNDUP(B13*5.8, 0) -> 0 | H13: 0 | I13: $$$ | J13: Fruit and vegetable CVB | L13: =ROUNDUP(H13*5.8, 0) -> 0
B16: Note: The order of the food items does not reflect the order in MI-WIC.

Sheet Food Package IV-A
B1: Food Package IV-A | H1: Food Package IV-A (Infant Foods)
H2: Functioning as Food Package III (must have formula assigned)
B3: Quantity | C3: Package Size | D3: Description | H3: Quantity | I3: Package Size | J3: Description
B4: =16-SUM(E23:E27) -> 12 | C4: QT | D4: Whole Milk | H4: =16-SUM(K25:K29) -> 12 | I4: QT | J4: Whole Milk
B5: =B26 -> 0 | C5: QT | D5: Plant-based Beverage | H5: =H28 -> 0 | I5: QT | J5: Plant-based Beverage
B6: =B27 -> 0 | C6: QT | D6: 2% Milk | H6: =H29 -> 0 | I6: QT | J6: 2% Milk
B7: =B23 -> 16 | C7: OZ | D7: CHEESE ($8.00 MAX PER LB.) | H7: =H25 -> 16 | I7: OZ | J7: CHEESE ($8.00 MAX PER LB.)
B8: =B24 -> 32 | C8: OZ | D8: Whole Fat or Low Fat Yogurt | H8: =H26 -> 32 | I8: OZ | J8: Whole Fat or Low Fat Yogurt
B9: =B25+B31 -> 0 | C9: LB | D9: TOFU | H9: =H27+H34 -> 0 | I9: LB | J9: TOFU
B10: =IF(E29=3, 0, 1) -> 0 | C10: BTL | D10: Juice 64 oz | H10: =1-K31-K32 -> 0 | I10: BTL | J10: Juice 64 oz
B11: 36 | C11: OZ | D11: CEREAL | H11: =36-K40 -> 0 | I11: OZ | J11: CEREAL
B12: =1-E31-E32-E33 -> 1 | C12: DOZ | D12: EGGS | H12: =H40 -> 32 | I12: OZ | J12: Infant Cereal
B13: =26+E29 -> 29 | C13: $$$ | D13: FRUITS AND VEGETABLES | H13: =1-K34-K35-K36 -> 1 | I13: DOZ | J13: EGGS
B14: 24 | C14: OZ | D14: WHOLE GRAINS | H14: =26+H31-K42 -> 0 | I14: $$$ | J14: FRUITS AND VEGETABLES
B15: 6 | C15: OZ | D15: FISH | H15: =H42+L32 -> 181 | I15: OZ | J15: Infant Fruits/Vegetables
B16: =1+E32-E35 -> 1 | C16: JAR | D16: 16-18ozPnutBtr,lb Dry,15-16ozCnBean | H16: 24 | I16: OZ | J16: WHOLE GRAINS
B17: =E33+E35 -> 0 | C17: JAR | D17: Nut & Seed Butter/Legumes | H17: 6 | I17: OZ | J17: FISH
B18: Conditional formatting to "hide" substitutions that equal 0. | H18: =1+K35-K38 -> 1 | I18: JAR | J18: 16-18ozPnutBtr,lb Dry,15-16ozCnBean
B19: Conditional formatting to display food item row with negative qty in red. | H19: =K36+K38 -> 0 | I19: JAR | J19: Nut & Seed Butter/Legumes
B20: Substitutions | H20: Conditional formatting to "hide" substitutions that equal 0.
B21: Substitution Amt | C21: Package Size | D21: Description | H21: Conditional formatting to display food item row with negative qty in red.
B22: Milk Substitutions | H22: Substitutions
B23: 16 | C23: OZ | D23: Cheese | E23: =(B23/16)*3 -> 3 | H23: Substitution Amt | I23: Package Size | J23: Description
B24: 32 | C24: OZ | D24: Whole Fat/Low Fat Yogurt | E24: =B24/32 -> 1 | H24: Milk Substitutions
B25: 0 | C25: LB | D25: Tofu | E25: =B25 -> 0 | H25: 16 | I25: OZ | J25: Cheese | K25: =(H25/16)*3 -> 3
B26: 0 | C26: QT | D26: Plant-based Beverage | E26: =B26 -> 0 | H26: 32 | I26: OZ | J26: Whole Fat/Low Fat Yogurt | K26: =H26/32 -> 1
B27: 0 | C27: QT | D27: 2% Milk | E27: =B27 -> 0 | H27: 0 | I27: LB | J27: Tofu | K27: =H27 -> 0
B28: Juice Substitutions | H28: 0 | I28: QT | J28: Plant-based Beverage | K28: =H28 -> 0
B29: 3 | C29: $$$ | D29: Fruit and Vegetable CVB | E29: =B29 -> 3 | H29: 0 | I29: QT | J29: 2% Milk | K29: =H29 -> 0
B30: Eggs Substitutions | H30: Juice Substitutions
B31: 0 | C31: LB | D31: Tofu | E31: =B31 -> 0 | H31: 0 | I31: $$$ | J31: Fruit and Vegetable CVB | K31: =H31/3 -> 0
B32: 0 | C32: JAR | D32: Peanut Butter/Legumes | E32: =B32 -> 0 | H32: 18 | I32: OZ | J32: Infant Fruits/Vegetables | K32: =ROUNDUP(H32/6.25,0)/3 -> 1 | L32: =IF(H32=18, H32+1, 0) -> 19
B33: 0 | C33: JAR | D33: Nut or Seed Butter/Legumes | E33: =B33 -> 0 | H33: Eggs Substitutions
B34: Peanut Butter/Legumes Substitutions | H34: 0 | I34: LB | J34: Tofu | K34: =H34 -> 0
B35: 0 | C35: JAR | D35: Nut or Seed Butter/Legumes | E35: =B35 -> 0 | H35: 0 | I35: JAR | J35: Peanut Butter/Legumes | K35: =H35 -> 0
H36: 0 | I36: JAR | J36: Nut or Seed Butter/Legumes | K36: =H36 -> 0
H37: Peanut Butter/Legumes Substitutions
H38: 0 | I38: JAR | J38: Nut or Seed Butter/Legumes | K38: =H38 -> 0
H39: Cereal Substitutions
H40: 32 | I40: OZ | J40: Infant Cereal | K40: =(H40/32)*36 -> 36
H41: Fruits and Vegetable Substitutions
H42: 162 | I42: OZ | J42: Infant Fruits/Vegetables | K42: =ROUNDUP(H42/6.25,0) -> 26
B45: Note: The order of the food items does not reflect the order in MI-WIC.

Sheet Food Package IV-B
B1: Food Package IV-B | H1: Food Package IV-B (Infant Foods) | O1: Food Package IV-B (Whole Milk/Infant Foods)
H2: Functioning as Food Package III (must have formula assigned) | O2: Functioning as Food Package III with Whole Milk (Must have formula assigned)
B3: Quantity | C3: Package Size | D3: Description | H3: Quantity | I3: Package Size | J3: Description | O3: Quantity | P3: Package Size | Q3: Description
B4: =16-SUM(E23:E27) -> 12 | C4: QT | D4: 1%, 1/2% or Skim Milk | H4: =16-SUM(K25:K29) -> 12 | I4: QT | J4: 1%, 1/2% or Skim Milk | O4: =16-SUM(R23:R25) -> 12 | P4: QT | Q4: Whole Milk
B5: =B26 -> 0 | C5: QT | D5: Plant-based Beverage | H5: =H28 -> 0 | I5: QT | J5: Plant-based Beverage | O5: =O23 -> 16 | P5: OZ | Q5: CHEESE ($8.00 MAX PER LB.)
B6: =B27 -> 0 | C6: QT | D6: 2% Milk | H6: =H29 -> 0 | I6: QT | J6: 2% Milk | O6: =O24 -> 32 | P6: OZ | Q6: Whole Fat or Low Fat Yogurt
B7: =B23 -> 16 | C7: OZ | D7: CHEESE ($8.00 MAX PER LB.) | H7: =H25 -> 16 | I7: OZ | J7: CHEESE ($8.00 MAX PER LB.) | O7: =O25+O30 -> 0 | P7: LB | Q7: TOFU
B8: =B24 -> 32 | C8: OZ | D8: Low Fat or Non Fat Yogurt | H8: =H26 -> 32 | I8: OZ | J8: Low Fat or Non Fat Yogurt | O8: =1-R27-R28 -> 0 | P8: BTL | Q8: Juice 64 oz
B9: =B25+B31 -> 0 | C9: LB | D9: TOFU | H9: =H27+H34 -> 0 | I9: LB | J9: TOFU | O9: =36-R36 -> 0 | P9: OZ | Q9: CEREAL
B10: =IF(E29=3, 0, 1) -> 0 | C10: BTL | D10: Juice 64 oz | H10: =1-K31-K32 -> 0 | I10: BTL | J10: Juice 64 oz | O10: =O36 -> 32 | P10: OZ | Q10: Infant Cereal
B11: 36 | C11: OZ | D11: CEREAL | H11: =36-K40 -> 0 | I11: OZ | J11: CEREAL | O11: =1-R30-R31-R32 -> 1 | P11: DOZ | Q11: EGGS
B12: =1-E31-E32-E33 -> 1 | C12: DOZ | D12: EGGS | H12: =H40 -> 32 | I12: OZ | J12: Infant Cereal | O12: =26+O27-R38 -> 0 | P12: $$$ | Q12: FRUITS AND VEGETABLES
B13: =26+E29 -> 29 | C13: $$$ | D13: FRUITS AND VEGETABLES | H13: =1-K34-K35-K36 -> 1 | I13: DOZ | J13: EGGS | O13: =O38+S28 -> 181 | P13: OZ | Q13: Infant Fruits/Vegetables
B14: 24 | C14: OZ | D14: WHOLE GRAINS | H14: =26+H31-K42 -> 0 | I14: $$$ | J14: FRUITS AND VEGETABLES | O14: 24 | P14: OZ | Q14: WHOLE GRAINS
B15: 6 | C15: OZ | D15: FISH | H15: =H42+L32 -> 181 | I15: OZ | J15: Infant Fruits/Vegetables | O15: 6 | P15: OZ | Q15: FISH
B16: =1+E32-E35 -> 1 | C16: JAR | D16: 16-18ozPnutBtr,lb Dry,15-16ozCnBean | H16: 24 | I16: OZ | J16: WHOLE GRAINS | O16: =1+R31-R34 -> 1 | P16: JAR | Q16: 16-18ozPnutBtr,lb Dry,15-16ozCnBean
B17: =E33+E35 -> 0 | C17: JAR | D17: Nut & Seed Butter/Legumes | H17: 6 | I17: OZ | J17: FISH | O17: =R32+R34 -> 0 | P17: JAR | Q17: Nut & Seed Butter/Legumes
B18: Conditional formatting to "hide" substitutions that equal 0. | H18: =1+K35-K38 -> 1 | I18: JAR | J18: 16-18ozPnutBtr,lb Dry,15-16ozCnBean | O18: Conditional formatting to "hide" substitutions that equal 0.
B19: Conditional formatting to display food item row with negative qty in red. | H19: =K36+K38 -> 0 | I19: JAR | J19: Nut & Seed Butter/Legumes | O19: Conditional formatting to display food item row with negative qty in red.
B20: Substitutions | H20: Conditional formatting to "hide" substitutions that equal 0. | O20: Substitutions
B21: Substitution Amt | C21: Package Size | D21: Description | H21: Conditional formatting to display food item row with negative qty in red. | O21: Substitution Amt | P21: Package Size | Q21: Description
B22: Milk Substitutions | H22: Substitutions | O22: Milk Substitutions
B23: 16 | C23: OZ | D23: Cheese | E23: =(B23/16)*3 -> 3 | H23: Substitution Amt | I23: Package Size | J23: Description | O23: 16 | P23: OZ | Q23: Cheese | R23: =(O23/16)*3 -> 3
B24: 32 | C24: OZ | D24: Low Fat or Non Fat Yogurt | E24: =B24/32 -> 1 | H24: Milk Substitutions | O24: 32 | P24: OZ | Q24: Whole Fat/Low Fat Yogurt | R24: =O24/32 -> 1
B25: 0 | C25: LB | D25: Tofu | E25: =B25 -> 0 | H25: 16 | I25: OZ | J25: Cheese | K25: =(H25/16)*3 -> 3 | O25: 0 | P25: LB | Q25: Tofu | R25: =O25 -> 0
B26: 0 | C26: QT | D26: Plant-based Beverage | E26: =B26 -> 0 | H26: 32 | I26: OZ | J26: Low Fat or Non Fat Yogurt | K26: =H26/32 -> 1 | O26: Juice Substitutions
B27: 0 | C27: QT | D27: 2% Milk | E27: =B27 -> 0 | H27: 0 | I27: LB | J27: Tofu | K27: =H27 -> 0 | O27: 0 | P27: $$$ | Q27: Fruit and Vegetable CVB | R27: =O27/3 -> 0
B28: Juice Substitutions | H28: 0 | I28: QT | J28: Plant-based Beverage | K28: =H28 -> 0 | O28: 18 | P28: OZ | Q28: Infant Fruits/Vegetables | R28: =ROUNDUP(O28/6.25,0)/3 -> 1 | S28: =IF(O28=18, O28+1, 0) -> 19
B29: 3 | C29: $$$ | D29: Fruit and Vegetable CVB | E29: =B29 -> 3 | H29: 0 | I29: QT | J29: 2% Milk | K29: =H29 -> 0 | O29: Eggs Substitutions
B30: Eggs Substitutions | H30: Juice Substitutions | O30: 0 | P30: LB | Q30: Tofu | R30: =O30 -> 0
B31: 0 | C31: LB | D31: Tofu | E31: =B31 -> 0 | H31: 0 | I31: $$$ | J31: Fruit and Vegetable CVB | K31: =H31/3 -> 0 | O31: 0 | P31: JAR | Q31: Peanut Butter/Legumes | R31: =O31 -> 0
B32: 0 | C32: JAR | D32: Peanut Butter/Legumes | E32: =B32 -> 0 | H32: 18 | I32: OZ | J32: Infant Fruits/Vegetables | K32: =ROUNDUP(H32/6.25,0)/3 -> 1 | L32: =IF(H32=18, H32+1, 0) -> 19 | O32: 0 | P32: JAR | Q32: Nut or Seed Butter/Legumes | R32: =O32 -> 0
B33: 0 | C33: JAR | D33: Nut or Seed Butter/Legumes | E33: =B33 -> 0 | H33: Eggs Substitutions | O33: Peanut Butter/Legumes Substitutions
B34: Peanut Butter/Legumes Substitutions | H34: 0 | I34: LB | J34: Tofu | K34: =H34 -> 0 | O34: 0 | P34: JAR | Q34: Nut or Seed Butter/Legumes | R34: =O34 -> 0
B35: 0 | C35: JAR | D35: Nut or Seed Butter/Legumes | E35: =B35 -> 0 | H35: 0 | I35: JAR | J35: Peanut Butter/Legumes | K35: =H35 -> 0 | O35: Cereal Substitutions
H36: 0 | I36: JAR | J36: Nut or Seed Butter/Legumes | K36: =H36 -> 0 | O36: 32 | P36: OZ | Q36: Infant Cereal | R36: =(O36/32)*36 -> 36
H37: Peanut Butter/Legumes Substitutions | O37: Fruits and Vegetable Substitutions
H38: 0 | I38: JAR | J38: Nut or Seed Butter/Legumes | K38: =H38 -> 0 | O38: 162 | P38: OZ | Q38: Infant Fruits/Vegetables | R38: =ROUNDUP(O38/6.25,0) -> 26
H39: Cereal Substitutions
H40: 32 | I40: OZ | J40: Infant Cereal | K40: =(H40/32)*36 -> 36
H41: Fruits and Vegetable Substitutions
H42: 162 | I42: OZ | J42: Infant Fruits/Vegetables | K42: =ROUNDUP(H42/6.25,0) -> 26
B46: Note: The order of the food items does not reflect the order in MI-WIC.

Sheet Food Package V-A
B1: Food Package V-A | H1: Food Package V-A (Infant Foods) | O1: Food Package V-A (Whole Milk/Infant Foods)
H2: Functioning as Food Package III (must have formula assigned) | O2: Functioning as Food Package III with Whole Milk (Must have formula assigned)
B3: Quantity | C3: Package Size | D3: Description | H3: Quantity | I3: Package Size | J3: Description | O3: Quantity | P3: Package Size | Q3: Description
B4: =22-SUM(E23:E27) -> 18 | C4: QT | D4: 1%, 1/2% or Skim Milk | H4: =22-SUM(K25:K29) -> 18 | I4: QT | J4: 1%, 1/2% or Skim Milk | O4: =22-SUM(R23:R25) -> 18 | P4: QT | Q4: Whole Milk
B5: =B26 -> 0 | C5: QT | D5: Plant-based Beverage | H5: =H28 -> 0 | I5: QT | J5: Plant-based Beverage | O5: =O23 -> 16 | P5: OZ | Q5: CHEESE ($8.00 MAX PER LB.)
B6: =B27 -> 0 | C6: QT | D6: 2% Milk | H6: =H29 -> 0 | I6: QT | J6: 2% Milk | O6: =O24 -> 32 | P6: OZ | Q6: Whole Fat or Low Fat Yogurt
B7: =B23 -> 16 | C7: OZ | D7: CHEESE ($8.00 MAX PER LB.) | H7: =H25 -> 16 | I7: OZ | J7: CHEESE ($8.00 MAX PER LB.) | O7: =O25+O30 -> 0 | P7: LB | Q7: TOFU
B8: =B24 -> 32 | C8: OZ | D8: Low Fat or Non Fat Yogurt | H8: =H26 -> 32 | I8: OZ | J8: Low Fat or Non Fat Yogurt | O8: =1-R27-R28 -> 0 | P8: BTL | Q8: Juice 64 oz
B9: =B25+B31 -> 0 | C9: LB | D9: TOFU | H9: =H27+H34 -> 0 | I9: LB | J9: TOFU | O9: =36-R36 -> 0 | P9: OZ | Q9: CEREAL
B10: =IF(E29=3, 0, 1) -> 0 | C10: BTL | D10: Juice 64 oz | H10: =1-K31-K32 -> 0 | I10: BTL | J10: Juice 64 oz | O10: =O36 -> 32 | P10: OZ | Q10: Infant Cereal
B11: 36 | C11: OZ | D11: CEREAL | H11: =36-K40 -> 0 | I11: OZ | J11: CEREAL | O11: =1-R30-R31-R32 -> 1 | P11: DOZ | Q11: EGGS
B12: =1-E31-E32-E33 -> 1 | C12: DOZ | D12: EGGS | H12: =H40 -> 32 | I12: OZ | J12: Infant Cereal | O12: =47+O27-S38 -> 0 | P12: $$$ | Q12: FRUITS AND VEGETABLES
B13: =47+E29 -> 50 | C13: $$$ | D13: FRUITS AND VEGETABLES | H13: =1-K34-K35-K36 -> 1 | I13: DOZ | J13: EGGS | O13: =O38+S28 -> 312 | P13: OZ | Q13: Infant Fruits/Vegetables
B14: 48 | C14: OZ | D14: WHOLE GRAINS | H14: =47+H31-L42 -> 0 | I14: $$$ | J14: FRUITS AND VEGETABLES | O14: 48 | P14: OZ | Q14: WHOLE GRAINS
B15: 10 | C15: OZ | D15: FISH | H15: =H42+L32 -> 312 | I15: OZ | J15: Infant Fruits/Vegetables | O15: 10 | P15: OZ | Q15: FISH
B16: =2+E32-E35 -> 2 | C16: JAR | D16: 16-18ozPnutBtr,lb Dry,15-16ozCnBean | H16: 48 | I16: OZ | J16: WHOLE GRAINS | O16: =2+R31-R34 -> 2 | P16: JAR | Q16: 16-18ozPnutBtr,lb Dry,15-16ozCnBean
B17: =E33+E35 -> 0 | C17: JAR | D17: Nut & Seed Butter/Legumes | H17: 10 | I17: OZ | J17: FISH | O17: =R32+R34 -> 0 | P17: JAR | Q17: Nut & Seed Butter/Legumes
B18: Conditional formatting to "hide" substitutions that equal 0. | H18: =2+K35-K38 -> 2 | I18: JAR | J18: 16-18ozPnutBtr,lb Dry,15-16ozCnBean | O18: Conditional formatting to "hide" substitutions that equal 0.
B19: Conditional formatting to display food item row with negative qty in red. | H19: =K36+K38 -> 0 | I19: JAR | J19: Nut & Seed Butter/Legumes | O19: Conditional formatting to display food item row with negative qty in red.
B20: Substitutions | H20: Conditional formatting to "hide" substitutions that equal 0. | O20: Substitutions
B21: Substitution Amt | C21: Package Size | D21: Description | H21: Conditional formatting to display food item row with negative qty in red. | O21: Substitution Amt | P21: Package Size | Q21: Description
B22: Milk Substitutions | H22: Substitutions | O22: Milk Substitutions
B23: 16 | C23: OZ | D23: Cheese | E23: =(B23/16)*3 -> 3 | H23: Substitution Amt | I23: Package Size | J23: Description | O23: 16 | P23: OZ | Q23: Cheese | R23: =(O23/16)*3 -> 3
B24: 32 | C24: OZ | D24: Low Fat or Non Fat Yogurt | E24: =B24/32 -> 1 | H24: Milk Substitutions | O24: 32 | P24: OZ | Q24: Whole Fat/Low Fat Yogurt | R24: =O24/32 -> 1
B25: 0 | C25: LB | D25: Tofu | E25: =B25 -> 0 | H25: 16 | I25: OZ | J25: Cheese | K25: =(H25/16)*3 -> 3 | O25: 0 | P25: LB | Q25: Tofu | R25: =O25 -> 0
B26: 0 | C26: QT | D26: Plant-based Beverage | E26: =B26 -> 0 | H26: 32 | I26: OZ | J26: Low Fat or Non Fat Yogurt | K26: =H26/32 -> 1 | O26: Juice Substitutions
B27: 0 | C27: QT | D27: 2% Milk | E27: =B27 -> 0 | H27: 0 | I27: LB | J27: Tofu | K27: =H27 -> 0 | O27: 0 | P27: $$$ | Q27: Fruit and Vegetable CVB | R27: =O27/3 -> 0
B28: Juice Substitutions | H28: 0 | I28: QT | J28: Plant-based Beverage | K28: =H28 -> 0 | O28: 18 | P28: OZ | Q28: Infant Fruits/Vegetables | R28: =ROUNDUP(O28/6.25,0)/3 -> 1 | S28: =IF(O28=18, O28+1, 0) -> 19
B29: 3 | C29: $$$ | D29: Fruit and Vegetable CVB | E29: =B29 -> 3 | H29: 0 | I29: QT | J29: 2% Milk | K29: =H29 -> 0 | O29: Eggs Substitutions
B30: Eggs Substitutions | H30: Juice Substitutions | O30: 0 | P30: LB | Q30: Tofu | R30: =O30 -> 0
B31: 0 | C31: LB | D31: Tofu | E31: =B31 -> 0 | H31: 0 | I31: $$$ | J31: Fruit and Vegetable CVB | K31: =H31/3 -> 0 | O31: 0 | P31: JAR | Q31: Peanut Butter/Legumes | R31: =O31 -> 0
B32: 0 | C32: JAR | D32: Peanut Butter/Legumes | E32: =B32 -> 0 | H32: 18 | I32: OZ | J32: Infant Fruits/Vegetables | K32: =ROUNDUP(H32/6.25,0)/3 -> 1 | L32: =IF(H32=18, H32+1, 0) -> 19 | O32: 0 | P32: JAR | Q32: Nut or Seed Butter/Legumes | R32: =O32 -> 0
B33: 0 | C33: JAR | D33: Nut or Seed Butter/Legumes | E33: =B33 -> 0 | H33: Eggs Substitutions | O33: Peanut Butter/Legumes Substitutions
B34: Peanut Butter/Legumes Substitutions | H34: 0 | I34: LB | J34: Tofu | K34: =H34 -> 0 | O34: 0 | P34: JAR | Q34: Nut or Seed Butter/Legumes | R34: =O34 -> 0
B35: 0 | C35: JAR | D35: Nut or Seed Butter/Legumes | E35: =B35 -> 0 | H35: 0 | I35: JAR | J35: Peanut Butter/Legumes | K35: =H35 -> 0 | O35: Cereal Substitutions
H36: 0 | I36: JAR | J36: Nut or Seed Butter/Legumes | K36: =H36 -> 0 | O36: 32 | P36: OZ | Q36: Infant Cereal | R36: =(O36/32)*36 -> 36
H37: Peanut Butter/Legumes Substitutions | O37: Fruits and Vegetable Substitutions
H38: 0 | I38: JAR | J38: Nut or Seed Butter/Legumes | K38: =H38 -> 0 | O38: 293 | P38: OZ | Q38: Infant Fruits/Vegetables | R38: =ROUNDUP(O38/6.25,0) -> 47 | S38: =IF(R38=24,23.5, IF(R38=47,47,0)) -> 47
H39: Cereal Substitutions
H40: 32 | I40: OZ | J40: Infant Cereal | K40: =(H40/32)*36 -> 36
H41: Fruits and Vegetable Substitutions
H42: 293 | I42: OZ | J42: Infant Fruits/Vegetables | K42: =ROUNDUP(H42/6.25,0) -> 47 | L42: =IF(K42=24,23.5, IF(K42=47,47,0)) -> 47
B48: Note: The order of the food items does not reflect the order in MI-WIC.

Sheet Food Package V-B
B1: Food Package V-B | H1: Food Package V-B (Infant Foods) | P1: Food Package V-B (Whole Milk/Infant Foods)
H2: Functioning as Food Package III (must have formula assigned) | P2: Functioning as Food Package III with Whole Milk (Must have formula assigned)
B3: Quantity | C3: Package Size | D3: Description | H3: Quantity | I3: Package Size | J3: Description | P3: Quantity | Q3: Package Size | R3: Description
B4: =22-SUM(F23:F27) -> 18 | C4: QT | D4: 1%, 1/2% or Skim Milk | H4: =22-SUM(L25:L29) -> 18 | I4: QT | J4: 1%, 1/2% or Skim Milk | P4: =22-SUM(T23:T25) -> 18 | Q4: QT | R4: Whole Milk
B5: =B26 -> 0 | C5: QT | D5: Plant-based Beverage | H5: =H28 -> 0 | I5: QT | J5: Plant-based Beverage | P5: =P23 -> 16 | Q5: OZ | R5: CHEESE ($8.00 MAX PER LB.)
B6: =B27 -> 0 | C6: QT | D6: 2% Milk | H6: =H29 -> 0 | I6: QT | J6: 2% Milk | P6: =P24 -> 32 | Q6: OZ | R6: Whole Fat or Low Fat Yogurt
B7: =B23 -> 16 | C7: OZ | D7: CHEESE ($8.00 MAX PER LB.) | H7: =H25 -> 16 | I7: OZ | J7: CHEESE ($8.00 MAX PER LB.) | P7: =P25+P30 -> 0 | Q7: LB | R7: TOFU
B8: =B24 -> 32 | C8: OZ | D8: Low Fat or Non Fat Yogurt | H8: =H26 -> 32 | I8: OZ | J8: Low Fat or Non Fat Yogurt | P8: =1-T27-T28 -> 0 | Q8: BTL | R8: Juice 64 oz
B9: =B25+B31 -> 0 | C9: LB | D9: TOFU | H9: =H27+H34 -> 0 | I9: LB | J9: TOFU | P9: =36-T36 -> 0 | Q9: OZ | R9: CEREAL
B10: =IF(F29=3, 0, 1) -> 0 | C10: BTL | D10: Juice 64 oz | H10: =1-L31-L32 -> 0 | I10: BTL | J10: Juice 64 oz | P10: =P36 -> 32 | Q10: OZ | R10: Infant Cereal
B11: 36 | C11: OZ | D11: CEREAL | H11: =36-L40 -> 0 | I11: OZ | J11: CEREAL | P11: =1-T30-T31-T32 -> 1 | Q11: DOZ | R11: EGGS
B12: =1-F31-F32-F33 -> 1 | C12: DOZ | D12: EGGS | H12: =H40 -> 32 | I12: OZ | J12: Infant Cereal | P12: =52+P27-U38 -> 0 | Q12: $$$ | R12: FRUITS AND VEGETABLES
B13: =52+F29 -> 55 | C13: $$$ | D13: FRUITS AND VEGETABLES | H13: =1-L34-L35-L36 -> 1 | I13: DOZ | J13: EGGS | P13: =S38+U28 -> 343 | Q13: OZ | R13: Infant Fruits/Vegetables
B14: 48 | C14: OZ | D14: WHOLE GRAINS | H14: =52+H31-M42 -> 0 | I14: $$$ | J14: FRUITS AND VEGETABLES | P14: 48 | Q14: OZ | R14: WHOLE GRAINS
B15: 15 | C15: OZ | D15: FISH | H15: =K42+M32 -> 343 | I15: OZ | J15: Infant Fruits/Vegetables | P15: 15 | Q15: OZ | R15: FISH
B16: =2+F32-F35 -> 2 | C16: JAR | D16: 16-18ozPnutBtr,lb Dry,15-16ozCnBean | H16: 48 | I16: OZ | J16: WHOLE GRAINS | P16: =2+T31-T34 -> 2 | Q16: JAR | R16: 16-18ozPnutBtr,lb Dry,15-16ozCnBean
B17: =F33+F35 -> 0 | C17: JAR | D17: Nut & Seed Butter/Legumes | H17: 15 | I17: OZ | J17: FISH | P17: =T32+T34 -> 0 | Q17: JAR | R17: Nut & Seed Butter/Legumes
B18: Conditional formatting to "hide" substitutions that equal 0. | H18: =2+L35-L38 -> 2 | I18: JAR | J18: 16-18ozPnutBtr,lb Dry,15-16ozCnBean | P18: Conditional formatting to "hide" substitutions that equal 0.
B19: Conditional formatting to display food item row with negative qty in red. | H19: =L36+L38 -> 0 | I19: JAR | J19: Nut & Seed Butter/Legumes | P19: Conditional formatting to display food item row with negative qty in red.
B20: Substitutions | H20: Conditional formatting to "hide" substitutions that equal 0. | P20: Substitutions
B21: Substitution Amt | C21: Package Size | D21: Description | H21: Conditional formatting to display food item row with negative qty in red. | P21: Substitution Amt | Q21: Package Size | R21: Description
B22: Milk Substitutions | H22: Substitutions | P22: Milk Substitutions
B23: 16 | C23: OZ | D23: Cheese | F23: =(B23/16)*3 -> 3 | H23: Substitution Amt | I23: Package Size | J23: Description | P23: 16 | Q23: OZ | R23: Cheese | T23: =(P23/16)*3 -> 3
B24: 32 | C24: OZ | D24: Low Fat or Non Fat Yogurt | F24: =B24/32 -> 1 | H24: Milk Substitutions | P24: 32 | Q24: OZ | R24: Whole Fat/Low Fat Yogurt | T24: =P24/32 -> 1
B25: 0 | C25: LB | D25: Tofu | F25: =B25 -> 0 | H25: 16 | I25: OZ | J25: Cheese | L25: =(H25/16)*3 -> 3 | P25: 0 | Q25: LB | R25: Tofu | T25: =P25 -> 0
B26: 0 | C26: QT | D26: Plant-based Beverage | F26: =B26 -> 0 | H26: 32 | I26: OZ | J26: Low Fat or Non Fat Yogurt | L26: =H26/32 -> 1 | P26: Juice Substitutions
B27: 0 | C27: QT | D27: 2% Milk | F27: =B27 -> 0 | H27: 0 | I27: LB | J27: Tofu | L27: =H27 -> 0 | P27: 0 | Q27: $$$ | R27: Fruit and Vegetable CVB | T27: =P27/3 -> 0
B28: Juice Substitutions | H28: 0 | I28: QT | J28: Plant-based Beverage | L28: =H28 -> 0 | P28: 18 | Q28: OZ | R28: Infant Fruits/Vegetables | T28: =ROUNDUP(P28/6.25,0)/3 -> 1 | U28: =IF(P28=18, P28, 0) -> 18
B29: 3 | C29: $$$ | D29: Fruit and Vegetable CVB | F29: =B29 -> 3 | H29: 0 | I29: QT | J29: 2% Milk | L29: =H29 -> 0 | P29: Eggs Substitutions
B30: Eggs Substitutions | H30: Juice Substitutions | P30: 0 | Q30: LB | R30: Tofu | T30: =P30 -> 0
B31: 0 | C31: LB | D31: Tofu | F31: =B31 -> 0 | H31: 0 | I31: $$$ | J31: Fruit and Vegetable CVB | L31: =H31/3 -> 0 | P31: 0 | Q31: JAR | R31: Peanut Butter/Legumes | T31: =P31 -> 0
B32: 0 | C32: JAR | D32: Peanut Butter/Legumes | F32: =B32 -> 0 | H32: 18 | I32: OZ | J32: Infant Fruits/Vegetables | L32: =ROUNDUP(H32/6.25,0)/3 -> 1 | M32: =IF(H32=18, H32, 0) -> 18 | P32: 0 | Q32: JAR | R32: Nut or Seed Butter/Legumes | T32: =P32 -> 0
B33: 0 | C33: JAR | D33: Nut or Seed Butter/Legumes | F33: =B33 -> 0 | H33: Eggs Substitutions | P33: Peanut Butter/Legumes Substitutions
B34: Peanut Butter/Legumes Substitutions | H34: 0 | I34: LB | J34: Tofu | L34: =H34 -> 0 | P34: 0 | Q34: JAR | R34: Nut or Seed Butter/Legumes | T34: =P34 -> 0
B35: 0 | C35: JAR | D35: Nut or Seed Butter/Legumes | F35: =B35 -> 0 | H35: 0 | I35: JAR | J35: Peanut Butter/Legumes | L35: =H35 -> 0 | P35: Cereal Substitutions
H36: 0 | I36: JAR | J36: Nut or Seed Butter/Legumes | L36: =H36 -> 0 | P36: 32 | Q36: OZ | R36: Infant Cereal | T36: =(P36/32)*36 -> 36
H37: Peanut Butter/Legumes Substitutions | P37: Fruits and Vegetable Substitutions
H38: 0 | I38: JAR | J38: Nut or Seed Butter/Legumes | L38: =H38 -> 0 | P38: 325 | Q38: OZ | R38: Infant Fruits/Vegetables | S38: =IF(P38=325,325, IF(P38=162,163)) -> 325 | T38: =ROUNDUP(P38/6.25,0) -> 52 | U38: =IF(T38=26,26, IF(T38=52,52,0)) -> 52
H39: Cereal Substitutions
H40: 32 | I40: OZ | J40: Infant Cereal | L40: =(H40/32)*36 -> 36
H41: Fruits and Vegetable Substitutions
H42: 325 | I42: OZ | J42: Infant Fruits/Vegetables | K42: =IF(H42=325,325, IF(H42=162,163)) -> 325 | L42: =ROUNDUP(H42/6.25,0) -> 52 | M42: =IF(L42=26,26, IF(L42=52,52,0)) -> 52
B47: Note: The order of the food items does not reflect the order in MI-WIC.

Sheet Food Package VI
B1: Food Package VI | H1: Food Package VI (Infant Foods) | O1: Food Package VI (Whole Milk/Infant Foods)
H2: Functioning as Food Package III (must have formula assigned) | O2: Functioning as Food Package III with Whole Milk (Must have formula assigned)
B3: Quantity | C3: Package Size | D3: Description | H3: Quantity | I3: Package Size | J3: Description | O3: Quantity | P3: Package Size | Q3: Description
B4: =16-SUM(F23:F27) -> 12 | C4: QT | D4: 1%, 1/2% or Skim Milk | H4: =16-SUM(K25:K29) -> 12 | I4: QT | J4: 1%, 1/2% or Skim Milk | O4: =16-SUM(R23:R25) -> 12 | P4: QT | Q4: Whole Milk
B5: =B26 -> 0 | C5: QT | D5: Plant-based Beverage | H5: =H28 -> 0 | I5: QT | J5: Plant-based Beverage | O5: =O23 -> 16 | P5: OZ | Q5: CHEESE ($8.00 MAX PER LB.)
B6: =B27 -> 0 | C6: QT | D6: 2% Milk | H6: =H29 -> 0 | I6: QT | J6: 2% Milk | O6: =O24 -> 32 | P6: OZ | Q6: Whole Fat or Low Fat Yogurt
B7: =B23 -> 16 | C7: OZ | D7: CHEESE ($8.00 MAX PER LB.) | H7: =H25 -> 16 | I7: OZ | J7: CHEESE ($8.00 MAX PER LB.) | O7: =O25+O30 -> 0 | P7: LB | Q7: TOFU
B8: =B24 -> 32 | C8: OZ | D8: Low Fat or Non Fat Yogurt | H8: =H26 -> 32 | I8: OZ | J8: Low Fat or Non Fat Yogurt | O8: =1-R27-R28 -> 0 | P8: BTL | Q8: Juice 64 oz
B9: =B25+B31 -> 0 | C9: LB | D9: TOFU | H9: =H27+H34 -> 0 | I9: LB | J9: TOFU | O9: =36-R36 -> 0 | P9: OZ | Q9: CEREAL
B10: =IF(F29=3, 0, 1) -> 0 | C10: BTL | D10: Juice 64 oz | H10: =1-K31-K32 -> 0 | I10: BTL | J10: Juice 64 oz | O10: =O36 -> 32 | P10: OZ | Q10: Infant Cereal
B11: 36 | C11: OZ | D11: CEREAL | H11: =36-K40 -> 0 | I11: OZ | J11: CEREAL | O11: =1-R30-R31-R32 -> 1 | P11: DOZ | Q11: EGGS
B12: =1-F31-F32-F33 -> 1 | C12: DOZ | D12: EGGS | H12: =H40 -> 32 | I12: OZ | J12: Infant Cereal | O12: =47+O27-S38 -> 0 | P12: $$$ | Q12: FRUITS AND VEGETABLES
B13: =47+F29 -> 50 | C13: $$$ | D13: FRUITS AND VEGETABLES | H13: =1-K34-K35-K36 -> 1 | I13: DOZ | J13: EGGS | O13: =O38+S28 -> 312 | P13: OZ | Q13: Infant Fruits/Vegetables
B14: 48 | C14: OZ | D14: WHOLE GRAINS | H14: =47+H31-L42 -> 0 | I14: $$$ | J14: FRUITS AND VEGETABLES | O14: 48 | P14: OZ | Q14: WHOLE GRAINS
B15: 10 | C15: OZ | D15: FISH | H15: =H42+L32 -> 312 | I15: OZ | J15: Infant Fruits/Vegetables | O15: 10 | P15: OZ | Q15: FISH
B16: =1+F32-F35 -> 1 | C16: JAR | D16: 16-18ozPnutBtr,lb Dry,15-16ozCnBean | H16: 48 | I16: OZ | J16: WHOLE GRAINS | O16: =1+R31-R34 -> 1 | P16: JAR | Q16: 16-18ozPnutBtr,lb Dry,15-16ozCnBean
B17: =F33+F35 -> 0 | C17: JAR | D17: Nut & Seed Butter/Legumes | H17: 10 | I17: OZ | J17: FISH | O17: =R32+R34 -> 0 | P17: JAR | Q17: Nut & Seed Butter/Legumes
B18: Conditional formatting to "hide" substitutions that equal 0. | H18: =1+K35-K38 -> 1 | I18: JAR | J18: 16-18ozPnutBtr,lb Dry,15-16ozCnBean | O18: Conditional formatting to "hide" substitutions that equal 0.
B19: Conditional formatting to display food item row with negative qty in red. | H19: =K36+K38 -> 0 | I19: JAR | J19: Nut & Seed Butter/Legumes | O19: Conditional formatting to display food item row with negative qty in red.
B20: Substitutions | H20: Conditional formatting to "hide" substitutions that equal 0. | O20: Substitutions
B21: Substitution Amt | C21: Package Size | D21: Description | H21: Conditional formatting to display food item row with negative qty in red. | O21: Substitution Amt | P21: Package Size | Q21: Description
B22: Milk Substitutions | H22: Substitutions | O22: Milk Substitutions
B23: 16 | C23: OZ | D23: Cheese | F23: =(B23/16)*3 -> 3 | H23: Substitution Amt | I23: Package Size | J23: Description | O23: 16 | P23: OZ | Q23: Cheese | R23: =(O23/16)*3 -> 3
B24: 32 | C24: OZ | D24: Low Fat or Non Fat Yogurt | F24: =B24/32 -> 1 | H24: Milk Substitutions | O24: 32 | P24: OZ | Q24: Whole Fat/Low Fat Yogurt | R24: =O24/32 -> 1
B25: 0 | C25: LB | D25: Tofu | F25: =B25 -> 0 | H25: 16 | I25: OZ | J25: Cheese | K25: =(H25/16)*3 -> 3 | O25: 0 | P25: LB | Q25: Tofu | R25: =O25 -> 0
B26: 0 | C26: QT | D26: Plant-based Beverage | F26: =B26 -> 0 | H26: 32 | I26: OZ | J26: Low Fat or Non Fat Yogurt | K26: =H26/32 -> 1 | O26: Juice Substitutions
B27: 0 | C27: QT | D27: 2% Milk | F27: =B27 -> 0 | H27: 0 | I27: LB | J27: Tofu | K27: =H27 -> 0 | O27: 0 | P27: $$$ | Q27: Fruit and Vegetable CVB | R27: =O27/3 -> 0
B28: Juice Substitutions | H28: 0 | I28: QT | J28: Plant-based Beverage | K28: =H28 -> 0 | O28: 18 | P28: OZ | Q28: Infant Fruits/Vegetables | R28: =ROUNDUP(O28/6.25,0)/3 -> 1 | S28: =IF(O28=18, O28+1, 0) -> 19
B29: 3 | C29: $$$ | D29: Fruit and Vegetable CVB | F29: =B29 -> 3 | H29: 0 | I29: QT | J29: 2% Milk | K29: =H29 -> 0 | O29: Eggs Substitutions
B30: Eggs Substitutions | H30: Juice Substitutions | O30: 0 | P30: LB | Q30: Tofu | R30: =O30 -> 0
B31: 0 | C31: LB | D31: Tofu | F31: =B31 -> 0 | H31: 0 | I31: $$$ | J31: Fruit and Vegetable CVB | K31: =H31/3 -> 0 | O31: 0 | P31: JAR | Q31: Peanut Butter/Legumes | R31: =O31 -> 0
B32: 0 | C32: JAR | D32: Peanut Butter/Legumes | F32: =B32 -> 0 | H32: 18 | I32: OZ | J32: Infant Fruits/Vegetables | K32: =ROUNDUP(H32/6.25,0)/3 -> 1 | L32: =IF(H32=18, H32+1, 0) -> 19 | O32: 0 | P32: JAR | Q32: Nut or Seed Butter/Legumes | R32: =O32 -> 0
B33: 0 | C33: JAR | D33: Nut or Seed Butter/Legumes | F33: =B33 -> 0 | H33: Eggs Substitutions | O33: Peanut Butter/Legumes Substitutions
B34: Peanut Butter/Legumes Substitutions | H34: 0 | I34: LB | J34: Tofu | K34: =H34 -> 0 | O34: 0 | P34: JAR | Q34: Nut or Seed Butter/Legumes | R34: =O34 -> 0
B35: 0 | C35: JAR | D35: Nut or Seed Butter/Legumes | F35: =B35 -> 0 | H35: 0 | I35: JAR | J35: Peanut Butter/Legumes | K35: =H35 -> 0 | O35: Cereal Substitutions
H36: 0 | I36: JAR | J36: Nut or Seed Butter/Legumes | K36: =H36 -> 0 | O36: 32 | P36: OZ | Q36: Infant Cereal | R36: =(O36/32)*36 -> 36
H37: Peanut Butter/Legumes Substitutions | O37: Fruits and Vegetable Substitutions
H38: 0 | I38: JAR | J38: Nut or Seed Butter/Legumes | K38: =H38 -> 0 | O38: 293 | P38: OZ | Q38: Infant Fruits/Vegetables | R38: =ROUNDUP(O38/6.25,0) -> 47 | S38: =IF(R38=24,23.5, IF(R38=47,47,0)) -> 47
H39: Cereal Substitutions
H40: 32 | I40: OZ | J40: Infant Cereal | K40: =(H40/32)*36 -> 36
H41: Fruits and Vegetable Substitutions
H42: 293 | I42: OZ | J42: Infant Fruits/Vegetables | K42: =ROUNDUP(H42/6.25,0) -> 47 | L42: =IF(K42=24,23.5, IF(K42=47,47,0)) -> 47
B47: Note: The order of the food items does not reflect the order we prefer in MI-WIC.

Sheet Food Package VII
B1: Food Package VII | H1: Food Package VII (Infant Foods) | P1: Food Package VII (Whole Milk/Infant Foods)
H2: Functioning as Food Package III (must have formula assigned) | P2: Functioning as Food Package III with Whole Milk (Must have formula assigned)
B3: Quantity | C3: Package Size | D3: Description | H3: Quantity | I3: Package Size | J3: Description | P3: Quantity | Q3: Package Size | R3: Description
B4: =24-SUM(F23:F27) -> 16 | C4: QT | D4: 1%, 1/2% or Skim Milk | H4: =24-SUM(L25:L29) -> 16 | I4: QT | J4: 1%, 1/2% or Skim Milk | P4: =24-SUM(T23:T25) -> 16 | Q4: QT | R4: Whole Milk
B5: =B26 -> 0 | C5: QT | D5: Plant-based Beverage | H5: =H28 -> 0 | I5: QT | J5: Plant-based Beverage | P5: =P23 -> 32 | Q5: OZ | R5: CHEESE ($8.00 MAX PER LB.)
B6: =B27 -> 0 | C6: QT | D6: 2% Milk | H6: =H29 -> 0 | I6: QT | J6: 2% Milk | P6: =P24 -> 64 | Q6: OZ | R6: Whole Fat or Low Fat Yogurt
B7: =B23 -> 32 | C7: OZ | D7: CHEESE ($8.00 MAX PER LB.) | H7: =H25 -> 32 | I7: OZ | J7: CHEESE ($8.00 MAX PER LB.) | P7: =P25+P30 -> 0 | Q7: LB | R7: TOFU
B8: =B24 -> 64 | C8: OZ | D8: Low Fat or Non Fat Yogurt | H8: =H26 -> 64 | I8: OZ | J8: Low Fat or Non Fat Yogurt | P8: =1-T27-T28 -> 0 | Q8: BTL | R8: Juice 64 oz
B9: =B25+B31 -> 0 | C9: LB | D9: TOFU | H9: =H27+H34 -> 0 | I9: LB | J9: TOFU | P9: =36-T36 -> 0 | Q9: OZ | R9: CEREAL
B10: =IF(F29=3, 0, 1) -> 0 | C10: BTL | D10: Juice 64 oz | H10: =1-L31-L32 -> 0 | I10: BTL | J10: Juice 64 oz | P10: =P36 -> 32 | Q10: OZ | R10: Infant Cereal
B11: 36 | C11: OZ | D11: CEREAL | H11: =36-L40 -> 0 | I11: OZ | J11: CEREAL | P11: =2-T30-T31-T32 -> 2 | Q11: DOZ | R11: EGGS
B12: =2-F31-F32-F33 -> 2 | C12: DOZ | D12: EGGS | H12: =H40 -> 32 | I12: OZ | J12: Infant Cereal | P12: =52+P27-U38 -> 0 | Q12: $$$ | R12: FRUITS AND VEGETABLES
B13: =52+F29 -> 55 | C13: $$$ | D13: FRUITS AND VEGETABLES | H13: =2-L34-L35-L36 -> 2 | I13: DOZ | J13: EGGS | P13: =S38+U28 -> 343 | Q13: OZ | R13: Infant Fruits/Vegetables
B14: 48 | C14: OZ | D14: WHOLE GRAINS | H14: =52+H31-M42 -> 0 | I14: $$$ | J14: FRUITS AND VEGETABLES | P14: 48 | Q14: OZ | R14: WHOLE GRAINS
B15: 20 | C15: OZ | D15: FISH | H15: =K42+M32 -> 343 | I15: OZ | J15: Infant Fruits/Vegetables | P15: 20 | Q15: OZ | R15: FISH
B16: =2+F32-F35 -> 2 | C16: JAR | D16: 16-18ozPnutBtr,lb Dry,15-16ozCnBean | H16: 48 | I16: OZ | J16: WHOLE GRAINS | P16: =2+T31-T34 -> 2 | Q16: JAR | R16: 16-18ozPnutBtr,lb Dry,15-16ozCnBean
B17: =F33+F35 -> 0 | C17: JAR | D17: Nut & Seed Butter/Legumes | H17: 20 | I17: OZ | J17: FISH | P17: =T32+T34 -> 0 | Q17: JAR | R17: Nut & Seed Butter/Legumes
B18: Conditional formatting to "hide" substitutions that equal 0. | H18: =2+L35-L38 -> 2 | I18: JAR | J18: 16-18ozPnutBtr,lb Dry,15-16ozCnBean | P18: Conditional formatting to "hide" substitutions that equal 0.
B19: Conditional formatting to display food item row with negative qty in red. | H19: =L36+L38 -> 0 | I19: JAR | J19: Nut & Seed Butter/Legumes | P19: Conditional formatting to display food item row with negative qty in red.
B20: Substitutions | H20: Conditional formatting to "hide" substitutions that equal 0. | P20: Substitutions
B21: Substitution Amt | C21: Package Size | D21: Description | H21: Conditional formatting to display food item row with negative qty in red. | P21: Substitution Amt | Q21: Package Size | R21: Description
B22: Milk Substitutions | H22: Substitutions | P22: Milk Substitutions
B23: 32 | C23: OZ | D23: Cheese | F23: =(B23/16)*3 -> 6 | H23: Substitution Amt | I23: Package Size | J23: Description | P23: 32 | Q23: OZ | R23: Cheese | T23: =(P23/16)*3 -> 6
B24: 64 | C24: OZ | D24: Low Fat or Non Fat Yogurt | F24: =B24/32 -> 2 | H24: Milk Substitutions | P24: 64 | Q24: OZ | R24: Whole Fat/Low Fat Yogurt | T24: =P24/32 -> 2
B25: 0 | C25: LB | D25: Tofu | F25: =B25 -> 0 | H25: 32 | I25: OZ | J25: Cheese | L25: =(H25/16)*3 -> 6 | P25: 0 | Q25: LB | R25: Tofu | T25: =P25 -> 0
B26: 0 | C26: QT | D26: Plant-based Beverage | F26: =B26 -> 0 | H26: 64 | I26: OZ | J26: Low Fat or Non Fat Yogurt | L26: =H26/32 -> 2 | P26: Juice Substitutions
B27: 0 | C27: QT | D27: 2% Milk | F27: =B27 -> 0 | H27: 0 | I27: LB | J27: Tofu | L27: =H27 -> 0 | P27: 0 | Q27: $$$ | R27: Fruit and Vegetable CVB | T27: =P27/3 -> 0
B28: Juice Substitutions | H28: 0 | I28: QT | J28: Plant-based Beverage | L28: =H28 -> 0 | P28: 18 | Q28: OZ | R28: Infant Fruits/Vegetables | T28: =ROUNDUP(P28/6.25,0)/3 -> 1 | U28: =IF(P28=18, P28, 0) -> 18
B29: 3 | C29: $$$ | D29: Fruit and Vegetable CVB | F29: =B29 -> 3 | H29: 0 | I29: QT | J29: 2% Milk | L29: =H29 -> 0 | P29: Eggs Substitutions
B30: Eggs Substitutions | H30: Juice Substitutions | P30: 0 | Q30: LB | R30: Tofu | T30: =P30 -> 0
B31: 0 | C31: LB | D31: Tofu | F31: =B31 -> 0 | H31: 0 | I31: $$$ | J31: Fruit and Vegetable CVB | L31: =H31/3 -> 0 | P31: 0 | Q31: JAR | R31: Peanut Butter/Legumes | T31: =P31 -> 0
B32: 0 | C32: JAR | D32: Peanut Butter/Legumes | F32: =B32 -> 0 | H32: 18 | I32: OZ | J32: Infant Fruits/Vegetables | L32: =ROUNDUP(H32/6.25,0)/3 -> 1 | M32: =IF(H32=18, H32, 0) -> 18 | P32: 0 | Q32: JAR | R32: Nut or Seed Butter/Legumes | T32: =P32 -> 0
B33: 0 | C33: JAR | D33: Nut or Seed Butter/Legumes | F33: =B33 -> 0 | H33: Eggs Substitutions | P33: Peanut Butter/Legumes Substitutions
B34: Peanut Butter/Legumes Substitutions | H34: 0 | I34: LB | J34: Tofu | L34: =H34 -> 0 | P34: 0 | Q34: JAR | R34: Nut or Seed Butter/Legumes | T34: =P34 -> 0
B35: 0 | C35: JAR | D35: Nut or Seed Butter/Legumes | F35: =B35 -> 0 | H35: 0 | I35: JAR | J35: Peanut Butter/Legumes | L35: =H35 -> 0 | P35: Cereal Substitutions
H36: 0 | I36: JAR | J36: Nut or Seed Butter/Legumes | L36: =H36 -> 0 | P36: 32 | Q36: OZ | R36: Infant Cereal | T36: =(P36/32)*36 -> 36
H37: Peanut Butter/Legumes Substitutions | P37: Fruits and Vegetable Substitutions
H38: 0 | I38: JAR | J38: Nut or Seed Butter/Legumes | L38: =H38 -> 0 | P38: 325 | Q38: OZ | R38: Infant Fruits/Vegetables | S38: =IF(P38=325,325, IF(P38=162,163)) -> 325 | T38: =ROUNDUP(P38/6.25,0) -> 52 | U38: =IF(T38=26,26, IF(T38=52,52,0)) -> 52
H39: Cereal Substitutions
H40: 32 | I40: OZ | J40: Infant Cereal | L40: =(H40/32)*36 -> 36
H41: Fruits and Vegetable Substitutions
H42: 325 | I42: OZ | J42: Infant Fruits/Vegetables | K42: =IF(H42=325,325, IF(H42=162,163)) -> 325 | L42: =ROUNDUP(H42/6.25,0) -> 52 | M42: =IF(L42=26,26, IF(L42=52,52,0)) -> 52
P46: **Applying 1.5x this food package should not result in decimal quantities issued.
B47: Note: The order of the food items does not reflect the order we prefer in MI-WIC.
H48: **Applying 1.5x this food package should not result in decimal quantities issued.

Sheet CVB-->Infant F V (hidden)
A1: Food Package Category | B1: CVB Max | C1: CVB: All Substituted for Infant F/V (ounces) | D1: CVB: Half Substituted for Infant F/V (ounces) | E1: CVB + Juice Substitution Max | F1: CVB+Juice: All Substituted for Infant F/V (ounces) | G1: CVB+Juice:Half Substituted for Infant F/V (ounces)
A2: Food Package IV.a. | B2: 26 | C2: =ROUNDDOWN(Table1[[#This Row],[CVB Max]]*6.25, 0) -> 162 | D2: =ROUNDDOWN(Table1[[#This Row],[CVB: All Substituted for Infant F/V (ounces)]]/2,0) -> 81 | E2: =Table1[[#This Row],[CVB Max]]+3 -> 29 | F2: =ROUNDDOWN(Table1[[#This Row],[CVB + Juice Substitution Max]]*6.25, 0) -> 181 | G2: =ROUNDDOWN(Table1[[#This Row],[CVB+Juice: All Substituted for Infant F/V (ounces)]]/2,0) -> 90
A3: Food Package IV.b. | B3: 26 | C3: =ROUNDDOWN(Table1[[#This Row],[CVB Max]]*6.25, 0) -> 162 | D3: =ROUNDDOWN(Table1[[#This Row],[CVB: All Substituted for Infant F/V (ounces)]]/2,0) -> 81 | E3: =Table1[[#This Row],[CVB Max]]+3 -> 29 | F3: =ROUNDDOWN(Table1[[#This Row],[CVB + Juice Substitution Max]]*6.25, 0) -> 181 | G3: =ROUNDDOWN(Table1[[#This Row],[CVB+Juice: All Substituted for Infant F/V (ounces)]]/2,0) -> 90
A4: Food Package V.a. | B4: 47 | C4: =ROUNDDOWN(Table1[[#This Row],[CVB Max]]*6.25, 0) -> 293 | D4: =ROUNDDOWN(Table1[[#This Row],[CVB: All Substituted for Infant F/V (ounces)]]/2,0) -> 146 | E4: =Table1[[#This Row],[CVB Max]]+3 -> 50 | F4: =ROUNDDOWN(Table1[[#This Row],[CVB + Juice Substitution Max]]*6.25, 0) -> 312 | G4: =ROUNDDOWN(Table1[[#This Row],[CVB+Juice: All Substituted for Infant F/V (ounces)]]/2,0) -> 156
A5: Food Package V.b. | B5: 52 | C5: =ROUNDDOWN(Table1[[#This Row],[CVB Max]]*6.25, 0) -> 325 | D5: =ROUNDDOWN(Table1[[#This Row],[CVB: All Substituted for Infant F/V (ounces)]]/2,0) -> 162 | E5: =Table1[[#This Row],[CVB Max]]+3 -> 55 | F5: =ROUNDDOWN(Table1[[#This Row],[CVB + Juice Substitution Max]]*6.25, 0) -> 343 | G5: =ROUNDDOWN(Table1[[#This Row],[CVB+Juice: All Substituted for Infant F/V (ounces)]]/2,0) -> 171
A6: Food Package VI. | B6: 47 | C6: =ROUNDDOWN(Table1[[#This Row],[CVB Max]]*6.25, 0) -> 293 | D6: =ROUNDDOWN(Table1[[#This Row],[CVB: All Substituted for Infant F/V (ounces)]]/2,0) -> 146 | E6: =Table1[[#This Row],[CVB Max]]+3 -> 50 | F6: =ROUNDDOWN(Table1[[#This Row],[CVB + Juice Substitution Max]]*6.25, 0) -> 312 | G6: =ROUNDDOWN(Table1[[#This Row],[CVB+Juice: All Substituted for Infant F/V (ounces)]]/2,0) -> 156
A7: Food Package VII. | B7: 52 | C7: =ROUNDDOWN(Table1[[#This Row],[CVB Max]]*6.25, 0) -> 325 | D7: =ROUNDDOWN(Table1[[#This Row],[CVB: All Substituted for Infant F/V (ounces)]]/2,0) -> 162 | E7: =Table1[[#This Row],[CVB Max]]+3 -> 55 | F7: =ROUNDDOWN(Table1[[#This Row],[CVB + Juice Substitution Max]]*6.25, 0) -> 343 | G7: =ROUNDDOWN(Table1[[#This Row],[CVB+Juice: All Substituted for Infant F/V (ounces)]]/2,0) -> 171
A8: Food Package VII. x1.5 | B8: 78 | C8: =ROUNDDOWN(Table1[[#This Row],[CVB Max]]*6.25, 0) -> 487 | D8: =ROUNDDOWN(Table1[[#This Row],[CVB: All Substituted for Infant F/V (ounces)]]/2,0) -> 243 | E8: 82.5 | F8: =ROUNDDOWN(Table1[[#This Row],[CVB + Juice Substitution Max]]*6.25, 0) -> 515 | G8: =ROUNDDOWN(Table1[[#This Row],[CVB+Juice: All Substituted for Infant F/V (ounces)]]/2,0) -> 257

Sheet Sheet1 (hidden)
